Workbook

Sheet Splash
L7: DayTradingLife.com

Sheet RandomORG Trading Simulator
B2: Details | I2: Trade System Expectancy - 'Random.ORG' Simulator v1.01 | AB2: DayTradingLife.com. | AF2: traderdowboy@gmail.com | AK2: Current Date / Time: | AL2: =TEXT(NOW(),"dd/mm/yyyy hh:mm AM/PM") -> 13/07/2017 03:55 PM
C4: 1st: ENTER DETAILS IN YELLOW CELLS! | J4: Results After 500 Random Trades. | AG4: Results After 100 Simulated Trades
C5: NOTES | E5: CALCULATE | J5: Total Losing Trades | L5: =IF(COUNTA($F$6:$F$10)=5,COUNTIF($L$24:$L$523,"LOSS"),"") -> 230 | Z5: Total Winning Trades | AB5: =IF(COUNTA($F$6:$F$10)=5,COUNTIF($L$24:$L$523,"WIN"),"") -> 270 | AG5: Total Losing Trades | AH5: =IF(COUNTA($F$6:$F$10)=5,COUNTIF($L$24:$L$123,"LOSS"),"") -> 41 | AK5: Total Winning Trades | AL5: =IF(COUNTA($F$6:$F$10)=5,COUNTIF($L$24:$L$123,"WIN"),"") -> 59
C6: Starting Capital (£) | F6: 10000 | J6: Total Losses(£) | L6: =IF(COUNTA($F$6:$F$10)=5,SUMPRODUCT((L24:L523="LOSS")*((F25:F524)-(F24:F523)))-F10,"") -> -35691.47049 | Z6: Total Wins(£) | AB6: =IF(COUNTA($F$6:$F$10)=5,SUMPRODUCT((L24:L523="WIN")*((F25:F524)-(F24:F523)))-F10,"") -> 50513.26257 | AG6: Total Losses(£) | AH6: =IF(COUNTA($F$6:$F$10)=5,SUMPRODUCT((L24:L123="LOSS")*((F25:F124)-(F24:F123)))-F10,"") -> -5001.512293 | AK6: Total Wins(£) | AL6: =IF(COUNTA($F$6:$F$10)=5,SUMPRODUCT((L24:L123="WIN")*((F25:F124)-(F24:F123)))-F10,"") -> 8388.81909
C7: Risk (%) | F7: 0.01 | J7: Actual Losing(%) | L7: =IF(COUNTA($F$6:$F$10)=5,L5/(L5+AB5),"") -> 0.46 | Z7: Actual Win(%) | AB7: =IF(COUNTA($F$6:$F$10)=5,(COUNTIF($D$24:$D$523,"<" & $F$8)/500),"") -> 0.54 | AG7: Actual Losing(%) | AH7: =IF(COUNTA($F$6:$F$10)=5,AH5/(AH5+AL5),"") -> 0.41 | AK7: Actual Winning(%) | AL7: =IF(COUNTA($F$6:$F$10)=5,(COUNTIF($D$24:$D$123,"<" & $F$8)/100),"") -> 0.59
C8: Winning (%) | F8: 55 | J8: Average Trade Loss(£) | L8: =IF(COUNTA($F$6:$F$10)=5,(L6/L5),"") -> -155.1803065 | Z8: Average Trade Win(£) | AB8: =IF(COUNTA($F$6:$F$10)=5,(AB6/AB5),"") -> 187.0861577 | AG8: Average Trade Loss(£) | AH8: =IF(COUNTA($F$6:$F$10)=5,(AH6/AH5),"") -> -121.9881047 | AK8: Average Trade Win(£) | AL8: =IF(COUNTA($F$6:$F$10)=5,(AL6/AL5),"") -> 142.1833744
C9: Payoff Ratio OR R/R | F9: 1.2 | J9: Average Trade Loss(%) | L9: =IF(COUNTA($F$6:$F$10)=5,(L8/L6),"") -> 0.004347826087 | Z9: Average Trade Win(%) | AB9: =IF(COUNTA($F$6:$F$10)=5,(AB8/AB6),"") -> 0.003703703704 | AG9: Average Trade Loss(%) | AH9: =IF(COUNTA($F$6:$F$10)=5,(AH8/AH6),"") -> 0.0243902439 | AK9: Average Trade Win(%) | AL9: =IF(COUNTA($F$6:$F$10)=5,(AL8/AL6),"") -> 0.01694915254
C10: Commission (£) | F10: 0 | J10: Most Consec. Losses | L10: =IF(COUNTA($F$6:$F$10)=5,MAX(FREQUENCY(IF(L24:L523="LOSS",ROW(L24:L523)),IF(L24:L523<>"LOSS",ROW(L24:L523)))),"") -> 7 | M10: =IF(N(L10),ADDRESS(MATCH(L10,COUNTIF(OFFSET(L24:L523,ROW(INDIRECT("1:"&ROWS(L24:L523)-L10+1))-1,0,L10),"LOSS"),0)+ROW(L24)-1,COLUMN(L24),4)&":"&ADDRESS(MATCH(L10,COUNTIF(OFFSET(L24:L523,ROW(INDIRECT("1:"&ROWS(L24:L523)-L10+1))-1,0,L10),"LOSS"),0)+L10-1+ROW(L24)-1,COLUMN(L24),4),"") -> L192:L198 | Z10: Most Consec. Wins | AB10: =IF(COUNTA($F$6:$F$10)=5,MAX(FREQUENCY(IF(L24:L523="WIN",ROW(L24:L523)),IF(L24:L523<>"WIN",ROW(L24:L523)))),"") -> 9 | AC10: =IF(N(AB10),ADDRESS(MATCH(AB10,COUNTIF(OFFSET(L24:L523,ROW(INDIRECT("1:"&ROWS(L24:L523)-AB10+1))-1,0,AB10),"WIN"),0)+ROW(L24)-1,COLUMN(L24),4)&":"&ADDRESS(MATCH(AB10,COUNTIF(OFFSET(L24:L523,ROW(INDIRECT("1:"&ROWS(L24:L523)-AB10+1))-1,0,AB10),"WIN"),0)+AB10-1+ROW(L24)-1,COLUMN(L24),4),"") -> L318:L326 | AG10: Most Consec. Losses | AH10: =IF(COUNTA($F$6:$F$10)=5,MAX(FREQUENCY(IF(L24:L123="LOSS",ROW(L24:L123)),IF(L24:L124<>"LOSS",ROW(L24:L123)))),"") -> 4 | AI10: =IF(N(AH10),ADDRESS(MATCH(AH10,COUNTIF(OFFSET(L24:L123,ROW(INDIRECT("1:"&ROWS(L24:L123)-AH10+1))-1,0,AH10),"LOSS"),0)+ROW(L24)-1,COLUMN(L24),4)&":"&ADDRESS(MATCH(AH10,COUNTIF(OFFSET(L24:L123,ROW(INDIRECT("1:"&ROWS(L24:L123)-AH10+1))-1,0,AH10),"LOSS"),0)+AH10-1+ROW(L24)-1,COLUMN(L24),4),"") -> L96:L99 | AK10: Most Consec. Wins | AL10: =IF(COUNTA($F$6:$F$10)=5,MAX(FREQUENCY(IF(L24:L123="WIN",ROW(L24:L123)),IF(L24:L123<>"WIN",ROW(L24:L123)))),"") -> 7 | AM10: =IF(N(AL10),ADDRESS(MATCH(AL10,COUNTIF(OFFSET(L24:L123,ROW(INDIRECT("1:"&ROWS(L24:L123)-AL10+1))-1,0,AL10),"WIN"),0)+ROW(L24)-1,COLUMN(L24),4)&":"&ADDRESS(MATCH(AL10,COUNTIF(OFFSET(L24:L123,ROW(INDIRECT("1:"&ROWS(L24:L123)-AL10+1))-1,0,AL10),"WIN"),0)+AL10-1+ROW(L24)-1,COLUMN(L24),4),"") -> L47:L53
J11: Most Consec. Losses(£) | L11: =IF(COUNTA($F$6:$F$10)=5,SUM(OFFSET(INDIRECT(M10),,-1,L10)),"") -> -990.9778131 | Z11: Most Consec. Wins(£) | AB11: =IF(COUNTA($F$6:$F$10)=5,SUM(OFFSET(INDIRECT(AC10),,-1,AB10)),"") -> 1595.499492 | AG11: Most Consec. Losses(£) | AH11: =IF(COUNTA($F$6:$F$10)=5,SUM(OFFSET(INDIRECT(AI10),,-1,AH10)),"") -> -513.8229722 | AK11: Most Consec. Wins(£) | AL11: =IF(COUNTA($F$6:$F$10)=5,SUM(OFFSET(INDIRECT(AM10),,-1,AL10)),"") -> 961.0227148
J12: Largest Losing Streak(£) | L12: =IF(COUNTA($F$6:$F$10)=5,MIN(X24:X523),"") -> -990.9778131 | Z12: Largest Winning Streak(£) | AB12: =IF(COUNTA($F$6:$F$10)=5,MAX(W24:W523),"") -> 1889.251073 | AG12: Largest Losing Streak(£) | AH12: =IF(COUNTA($F$6:$F$10)=5,MIN(X24:X123),"") -> -513.8229722 | AK12: Largest Winning Streak(£) | AL12: =IF(COUNTA($F$6:$F$10)=5,MAX(W24:W123),"") -> 961.0227148
C13: Statistical Probabilty Of Consec. Wins & Losses.
C14: No.Trades | D14: Con.Losses | F14: Con. Wins | J14: Largest Losing Trade(£) | L14: =IF(M14="","","K"& 23+MATCH(M14,IF(L24:L523="LOSS",K24:K523),0)) -> K515 | M14: =IF(COUNTA($F$6:$F$10)<5, "", MIN(IF(L24:L523 = "LOSS", K24:K523))) -> -248.8485477 | Z14: Largest Winning Trade(£) | AB14: =IF(AC14="","","K"& 23+MATCH(AC14,IF(L24:L523="WIN",K24:K523),0)) -> K514 | AC14: =IF(COUNTA($F$6:$F$10)<5, "", MAX(IF(L24:L523 = "WIN", K24:K523))) -> 295.0773293 | AG14: Largest Losing Trade(£) | AH14: =IF(AI14="","","K"& 23+MATCH(AI14,IF(L24:L123="LOSS",K24:K123),0)) -> K120 | AI14: =IF(COUNTA($F$6:$F$10)<5, "", MIN(IF(L24:L123 = "LOSS", K24:K123))) -> -136.3349239 | AK14: Largest Winning Trade(£) | AL14: =IF(AM14="","","K"& 23+MATCH(AM14,IF(L24:L123="WIN",K24:K123),0)) -> K119 | AM14: =IF(COUNTA($F$6:$F$10)<5, "", MAX(IF(L24:L123 = "WIN", K24:K123))) -> 161.661965
D15: =IF(COUNTA($C$15,$F$8)=2,LN(C15)/-LN(D16),"") ->  | F15: =IF(COUNTA($C$15,$F$8)=2,LN(C15)/-LN(F16),"") ->  | J15: Lowest Equity Low(£) | L15: =IF(COUNTA($F$6:$F$10)=5,MIN($F$24:$F$523),"") -> 9856.381627 | Z15: Peak Gain(£) | AB15: =IF(COUNTA($F$6:$F$10)=5,MAX($F$24:$F$523),"") -> 24884.85477 | AG15: Lowest Equity Low(£) | AH15: =IF(COUNTA($F$6:$F$10)=5,MIN($F$24:$F$123),"") -> 9856.381627 | AK15: Peak Gain(£) | AL15: =IF(COUNTA($F$6:$F$10)=5,MAX($F$24:$F$123),"") -> 13633.49239
D16: =(100-F8)/100 -> 0.45 | F16: =1-D16 -> 0.55
C18: 100 | D18: =IF(COUNTBLANK($F$6:$F$10),"",LN(C18)/-LN(D16)) -> 5.767220789 | F18: =IF(COUNTBLANK($F$6:$F$10),"",LN(C18)/-LN(F16)) -> 7.70305314 | J18: Ending Capital (£) | L18: =IF(COUNTBLANK($F$6:$F$10),"",(F523+K523)) -> 24821.79208 | Z18: Nett Profit / Loss (%) | AB18: =IF(COUNTBLANK($F$6:$F$10),"",(L18-F6)/F6) -> 1.482179208 | AG18: Ending Capital (£) | AH18: =IF(COUNTBLANK($F$6:$F$10),"",(F124)) -> 13387.3068 | AK18: Nett Profit / Loss (%) | AL18: =IF(COUNTBLANK($F$6:$F$10),"",(AH18-F6)/F6) -> 0.3387306797
C20: 500 | D20: =IF(COUNTBLANK($F$6:$F$10),"",LN(C20)/-LN(D16)) -> 7.782777959 | F20: =IF(COUNTBLANK($F$6:$F$10),"",LN(C20)/-LN(F16)) -> 10.39515468 | J20: Nett Profit / Loss (£) | L20: =IF(COUNTBLANK($F$6:$F$10),"",(L18-F6)) -> 14821.79208 | Z20: Drawdown Recovery (%) | AB20: =IF(AND(COUNTBLANK($F$6:$F$10)>0,L18=""),"",IF(OR(L18<0,L18>=F6),"NO % DATA IS REQUIRED",IF(AND(L18>0,L18<F6),(1/(L18/F6)-1),))) -> NO % DATA IS REQUIRED | AG20: Nett Profit / Loss (£) | AH20: =IF(COUNTBLANK($F$6:$F$10),"",(AH18-F6)) -> 3387.306797 | AK20: Drawdown Recovery (%) | AL20: =IF(AND(COUNTBLANK($F$6:$F$10)>0,AH18=""),"",IF(OR(AH18<0,AH18>=F6),"NO % DATA IS REQUIRED",IF(AND(AH18>0,AH18<F6),(1/(AH18/F6)-1),))) -> NO % DATA IS REQUIRED
B23: Row & Trade | D23: Random.ORG | F23: Capital (£) | H23: =IF(COUNTA($F$6:$F$10)=5, CONCATENATE("Risk ", F7*100,"%"),"Risk %") -> Risk 1% | K23: Win/Loss (£) | L23: Outcome (L) | M23: Capital +/-% | N23: Count | O23: Position | P23: Repeats | Q23: WIN | R23: LOSS | S23: Win Label Pos. | T23: WIN % | U23: LOSS Label Pos | V23: LOSS % | W23: Winning Streaks £'s | X23: Losing Streaks £'s
B24: Row 24 (1) | D24: 32 | F24: =IF(COUNTBLANK($F$6:$F$10),"",$F$6) -> 10000 | H24: =IF(COUNTBLANK($F$6:$F$10),"",F24*$F$7) -> 100 | K24: =IF(COUNTBLANK($F$6:$F$10),"", IF(L24="win", H24*$F$9-$F$10, IF(L24="loss", -H24-$F$10))) -> 120 | L24: =IF(D24="","",IF(D24<$F$8,"WIN","LOSS")) -> WIN | M24: =IF(COUNTA($F$6:$F$10)=5,(F25-F24)/F24,"") -> 0.012 | N24: 1 | O24: =IF(N24=1,IF(N25=1,"last","new"),IF(N25=1,"last","middle")) -> last | P24: 25 | Q24: =COUNTIFS(Outcome,$Q$23,position,"last",count,P24) -> 0 | R24: =SUMPRODUCT((Outcome=$R$23)*(position="last")*(count=P24)) -> 0 | S24: 0.5 | T24: =IF(Q24=0,"",Q24*$P24/500) ->  | U24: =S24+1 -> 1.5 | V24: =IF(R24=0,"",R24*$P24/500) ->  | W24: =IF(AND(L24="WIN",L25<>"WIN"),SUMIF(L24:L$24,"WIN",K24:K$24)-SUM(W$23:W23),"") -> 120 | X24: =IF(AND(L24="LOSS",L25<>"LOSS"),SUMIF(L$24:L24,"LOSS",K$24:K24)-SUM(X$23:X23),"") -> 
B25: Row 25 (2) | D25: 96 | F25: =IF(COUNTBLANK($F$6:$F$10),"",IF(D24<$F$8,(1+$F$7*$F$9)*F24-$F$10,(1-$F$7)*F24-$F$10)) -> 10120 | H25: =IF(COUNTBLANK($F$6:$F$10),"",F25*$F$7) -> 101.2 | K25: =IF(COUNTBLANK($F$6:$F$10),"", IF(L25="win", H25*$F$9-$F$10, IF(L25="loss", -H25-$F$10))) -> -101.2 | L25: =IF(D25="","",IF(D25<$F$8,"WIN","LOSS")) -> LOSS | M25: =IF(COUNTA($F$6:$F$10)=5,(F26-F24)/F24,"") -> 0.00188 | N25: =IF(L25=L24,N24+1,1) -> 1 | O25: =IF(N25=1,IF(N26=1,"last","new"),IF(N26=1,"last","middle")) -> new | P25: 24 | Q25: =COUNTIFS(Outcome,$Q$23,position,"last",count,P25) -> 0 | R25: 0 | S25: 2.5 | U25: 3.5 | W25: =IF(AND(L25="WIN",L26<>"WIN"),SUMIF(L$24:L25,"WIN",K$24:K25)-SUM(W$23:W24),"") ->  | X25: =IF(AND(L25="LOSS",L26<>"LOSS"),SUMIF(L$24:L25,"LOSS",K$24:K25)-SUM(X$23:X24),"") -> 
B26: Row 26 (3) | D26: 81 | F26: =IF(COUNTBLANK($F$6:$F$10),"",IF(D25<$F$8,(1+$F$7*$F$9)*F25-$F$10,(1-$F$7)*F25-$F$10)) -> 10018.8 | H26: 100.188 | K26: =IF(COUNTBLANK($F$6:$F$10),"", IF(L26="win", H26*$F$9-$F$10, IF(L26="loss", -H26-$F$10))) -> -100.188 | L26: LOSS | M26: =IF(COUNTA($F$6:$F$10)=5,(F27-F24)/F24,"") -> -0.0081388 | N26: 2 | O26: last | P26: 23 | Q26: 0 | R26: 0 | S26: 4.5 | U26: 5.5 | W26: =IF(AND(L26="WIN",L27<>"WIN"),SUMIF(L$24:L26,"WIN",K$24:K26)-SUM(W$23:W25),"") ->  | X26: =IF(AND(L26="LOSS",L27<>"LOSS"),SUMIF(L$24:L26,"LOSS",K$24:K26)-SUM(X$23:X25),"") -> -201.388
B27: Row 27 (4) | D27: 32 | F27: 9918.612 | H27: 99.18612 | K27: 119.023344 | L27: WIN | M27: =IF(COUNTA($F$6:$F$10)=5,(F28-F24)/F24,"") -> 0.0037635344 | N27: 1 | O27: new | P27: 22 | Q27: 0 | R27: 0 | S27: 6.5 | U27: 7.5 | W27: =IF(AND(L27="WIN",L28<>"WIN"),SUMIF(L$24:L27,"WIN",K$24:K27)-SUM(W$23:W26),"") ->  | X27: =IF(AND(L27="LOSS",L28<>"LOSS"),SUMIF(L$24:L27,"LOSS",K$24:K27)-SUM(X$23:X26),"") -> 
B28: Row 28 (5) | D28: 5 | F28: 10037.63534 | H28: 100.3763534 | K28: 120.4516241 | L28: WIN | M28: =IF(COUNTA($F$6:$F$10)=5,(F29-F24)/F24,"") -> 0.01580869681 | N28: 2 | O28: last | P28: 21 | Q28: 0 | R28: 0 | S28: 8.5 | U28: 9.5 | W28: =IF(AND(L28="WIN",L29<>"WIN"),SUMIF(L$24:L28,"WIN",K$24:K28)-SUM(W$23:W27),"") -> 239.4749681 | X28: =IF(AND(L28="LOSS",L29<>"LOSS"),SUMIF(L$24:L28,"LOSS",K$24:K28)-SUM(X$23:X27),"") -> 
B29: Row 29 (6) | D29: 90 | F29: 10158.08697 | H29: 101.5808697 | K29: -101.5808697 | L29: LOSS | M29: =IF(COUNTA($F$6:$F$10)=5,(F30-F24)/F24,"") -> 0.005650609845 | N29: 1 | O29: new | P29: 20 | Q29: 0 | R29: 0 | S29: 10.5 | U29: 11.5 | W29: =IF(AND(L29="WIN",L30<>"WIN"),SUMIF(L$24:L29,"WIN",K$24:K29)-SUM(W$23:W28),"") ->  | X29: =IF(AND(L29="LOSS",L30<>"LOSS"),SUMIF(L$24:L29,"LOSS",K$24:K29)-SUM(X$23:X28),"") -> 
B30: Row 30 (7) | D30: 70 | F30: 10056.5061 | H30: 100.565061 | K30: -100.565061 | L30: LOSS | M30: =IF(COUNTA($F$6:$F$10)=5,(F31-F24)/F24,"") -> -0.004405896254 | N30: 2 | O30: middle | P30: 19 | Q30: 0 | R30: 0 | S30: 12.5 | U30: 13.5 | W30: =IF(AND(L30="WIN",L31<>"WIN"),SUMIF(L$24:L30,"WIN",K$24:K30)-SUM(W$23:W29),"") ->  | X30: =IF(AND(L30="LOSS",L31<>"LOSS"),SUMIF(L$24:L30,"LOSS",K$24:K30)-SUM(X$23:X29),"") -> 
B31: Row 31 (8) | D31: 100 | F31: 9955.941037 | H31: 99.55941037 | K31: -99.55941037 | L31: LOSS | M31: =IF(COUNTA($F$6:$F$10)=5,(F32-F24)/F24,"") -> -0.01436183729 | N31: 3 | O31: last | P31: 18 | Q31: 0 | R31: 0 | S31: 14.5 | T31: =IF(Q31=0,"",Q31*$P31/500) ->  | U31: =S31+1 -> 15.5 | W31: =IF(AND(L31="WIN",L32<>"WIN"),SUMIF(L$24:L31,"WIN",K$24:K31)-SUM(W$23:W30),"") ->  | X31: =IF(AND(L31="LOSS",L32<>"LOSS"),SUMIF(L$24:L31,"LOSS",K$24:K31)-SUM(X$23:X30),"") -> -301.705341
B32: Row 32 (9) | D32: 53 | F32: 9856.381627 | H32: 98.56381627 | K32: 118.2765795 | L32: WIN | M32: =IF(COUNTA($F$6:$F$10)=5,(F33-F24)/F24,"") -> -0.002534179339 | N32: 1 | O32: new | P32: 17 | Q32: 0 | R32: 0 | S32: 16.5 | U32: =S32+1 -> 17.5 | W32: =IF(AND(L32="WIN",L33<>"WIN"),SUMIF(L$24:L32,"WIN",K$24:K32)-SUM(W$23:W31),"") ->  | X32: =IF(AND(L32="LOSS",L33<>"LOSS"),SUMIF(L$24:L32,"LOSS",K$24:K32)-SUM(X$23:X31),"") -> 
B33: Row 33 (10) | D33: 46 | F33: 9974.658207 | H33: 99.74658207 | K33: 119.6958985 | L33: WIN | M33: =IF(COUNTA($F$6:$F$10)=5,(F34-F24)/F24,"") -> 0.009435410509 | N33: 2 | O33: middle | P33: 16 | Q33: 0 | R33: 0 | S33: 18.5 | U33: 19.5 | W33: =IF(AND(L33="WIN",L34<>"WIN"),SUMIF(L$24:L33,"WIN",K$24:K33)-SUM(W$23:W32),"") ->  | X33: =IF(AND(L33="LOSS",L34<>"LOSS"),SUMIF(L$24:L33,"LOSS",K$24:K33)-SUM(X$23:X32),"") -> 
B34: Row 34 (11) | D34: 37 | F34: 10094.35411 | H34: 100.9435411 | K34: 121.1322493 | L34: WIN | M34: =IF(COUNTA($F$6:$F$10)=5,(F35-F24)/F24,"") -> 0.02154863544 | N34: 3 | O34: last | P34: 15 | Q34: 0 | R34: 0 | S34: 20.5 | U34: 21.5 | W34: =IF(AND(L34="WIN",L35<>"WIN"),SUMIF(L$24:L34,"WIN",K$24:K34)-SUM(W$23:W33),"") -> 359.1047273 | X34: =IF(AND(L34="LOSS",L35<>"LOSS"),SUMIF(L$24:L34,"LOSS",K$24:K34)-SUM(X$23:X33),"") -> 
B35: Row 35 (12) | D35: 89 | F35: 10215.48635 | H35: 102.1548635 | K35: -102.1548635 | L35: LOSS | M35: =IF(COUNTA($F$6:$F$10)=5,(F36-F24)/F24,"") -> 0.01133314908 | N35: 1 | O35: last | P35: 14 | Q35: 0 | R35: 0 | S35: 22.5 | U35: 23.5 | W35: =IF(AND(L35="WIN",L36<>"WIN"),SUMIF(L$24:L35,"WIN",K$24:K35)-SUM(W$23:W34),"") ->  | X35: =IF(AND(L35="LOSS",L36<>"LOSS"),SUMIF(L$24:L35,"LOSS",K$24:K35)-SUM(X$23:X34),"") -> -102.1548635
B36: Row 36 (13) | D36: 28 | F36: 10113.33149 | H36: 101.1333149 | K36: 121.3599779 | L36: WIN | M36: =IF(COUNTA($F$6:$F$10)=5,(F37-F24)/F24,"") -> 0.02346914687 | N36: 1 | O36: new | P36: 13 | Q36: 0 | R36: 0 | S36: 24.5 | U36: 25.5 | W36: =IF(AND(L36="WIN",L37<>"WIN"),SUMIF(L$24:L36,"WIN",K$24:K36)-SUM(W$23:W35),"") ->  | X36: =IF(AND(L36="LOSS",L37<>"LOSS"),SUMIF(L$24:L36,"LOSS",K$24:K36)-SUM(X$23:X35),"") -> 
B37: Row 37 (14) | D37: 22 | F37: 10234.69147 | H37: 102.3469147 | K37: 122.8162976 | L37: WIN | M37: =IF(COUNTA($F$6:$F$10)=5,(F38-F24)/F24,"") -> 0.03575077663 | N37: 2 | O37: middle | P37: 12 | Q37: 0 | R37: 0 | S37: 26.5 | U37: 27.5 | W37: =IF(AND(L37="WIN",L38<>"WIN"),SUMIF(L$24:L37,"WIN",K$24:K37)-SUM(W$23:W36),"") ->  | X37: =IF(AND(L37="LOSS",L38<>"LOSS"),SUMIF(L$24:L37,"LOSS",K$24:K37)-SUM(X$23:X36),"") -> 
B38: Row 38 (15) | D38: 22 | F38: 10357.50777 | H38: 103.5750777 | K38: 124.2900932 | L38: WIN | M38: =IF(COUNTA($F$6:$F$10)=5,(F39-F24)/F24,"") -> 0.04817978595 | N38: 3 | O38: middle | P38: 11 | Q38: 0 | R38: 0 | S38: 28.5 | U38: 29.5 | W38: =IF(AND(L38="WIN",L39<>"WIN"),SUMIF(L$24:L38,"WIN",K$24:K38)-SUM(W$23:W37),"") ->  | X38: =IF(AND(L38="LOSS",L39<>"LOSS"),SUMIF(L$24:L38,"LOSS",K$24:K38)-SUM(X$23:X37),"") -> 
B39: Row 39 (16) | D39: 33 | F39: 10481.79786 | H39: 104.8179786 | K39: 125.7815743 | L39: WIN | M39: =IF(COUNTA($F$6:$F$10)=5,(F40-F24)/F24,"") -> 0.06075794338 | N39: 4 | O39: last | P39: 10 | Q39: 0 | R39: 0 | S39: 30.5 | U39: 31.5 | W39: =IF(AND(L39="WIN",L40<>"WIN"),SUMIF(L$24:L39,"WIN",K$24:K39)-SUM(W$23:W38),"") -> 494.247943 | X39: =IF(AND(L39="LOSS",L40<>"LOSS"),SUMIF(L$24:L39,"LOSS",K$24:K39)-SUM(X$23:X38),"") -> 
B40: Row 40 (17) | D40: 81 | F40: 10607.57943 | H40: 106.0757943 | K40: -106.0757943 | L40: LOSS | M40: =IF(COUNTA($F$6:$F$10)=5,(F41-F24)/F24,"") -> 0.05015036395 | N40: 1 | O40: last | P40: 9 | Q40: 1 | R40: 0 | S40: 32.5 | T40: 0.018 | U40: 33.5 | W40: =IF(AND(L40="WIN",L41<>"WIN"),SUMIF(L$24:L40,"WIN",K$24:K40)-SUM(W$23:W39),"") ->  | X40: =IF(AND(L40="LOSS",L41<>"LOSS"),SUMIF(L$24:L40,"LOSS",K$24:K40)-SUM(X$23:X39),"") -> -106.0757943
B41: Row 41 (18) | D41: 47 | F41: 10501.50364 | H41: 105.0150364 | K41: 126.0180437 | L41: WIN | M41: =IF(COUNTA($F$6:$F$10)=5,(F42-F24)/F24,"") -> 0.06275216832 | N41: 1 | O41: new | P41: 8 | Q41: 1 | R41: 0 | S41: 34.5 | T41: 0.016 | U41: =S41+1 -> 35.5 | W41: =IF(AND(L41="WIN",L42<>"WIN"),SUMIF(L$24:L41,"WIN",K$24:K41)-SUM(W$23:W40),"") ->  | X41: =IF(AND(L41="LOSS",L42<>"LOSS"),SUMIF(L$24:L41,"LOSS",K$24:K41)-SUM(X$23:X40),"") -> 
B42: Row 42 (19) | D42: 38 | F42: 10627.52168 | H42: 106.2752168 | K42: 127.5302602 | L42: WIN | M42: =IF(COUNTA($F$6:$F$10)=5,(F43-F24)/F24,"") -> 0.07550519434 | N42: 2 | O42: middle | P42: 7 | Q42: 3 | R42: 1 | S42: 36.5 | T42: 0.042 | U42: =S42+1 -> 37.5 | V42: 0.014 | W42: =IF(AND(L42="WIN",L43<>"WIN"),SUMIF(L$24:L42,"WIN",K$24:K42)-SUM(W$23:W41),"") ->  | X42: =IF(AND(L42="LOSS",L43<>"LOSS"),SUMIF(L$24:L42,"LOSS",K$24:K42)-SUM(X$23:X41),"") -> 
B43: Row 43 (20) | D43: 30 | F43: 10755.05194 | H43: 107.5505194 | K43: 129.0606233 | L43: WIN | M43: =IF(COUNTA($F$6:$F$10)=5,(F44-F24)/F24,"") -> 0.08841125667 | N43: 3 | O43: middle | P43: 6 | Q43: 1 | R43: 0 | S43: 38.5 | T43: 0.012 | U43: 39.5 | W43: =IF(AND(L43="WIN",L44<>"WIN"),SUMIF(L$24:L43,"WIN",K$24:K43)-SUM(W$23:W42),"") ->  | X43: =IF(AND(L43="LOSS",L44<>"LOSS"),SUMIF(L$24:L43,"LOSS",K$24:K43)-SUM(X$23:X42),"") -> 
B44: Row 44 (21) | D44: 29 | F44: 10884.11257 | H44: 108.8411257 | K44: 130.6093508 | L44: WIN | M44: =IF(COUNTA($F$6:$F$10)=5,(F45-F24)/F24,"") -> 0.1014721917 | N44: 4 | O44: middle | P44: 5 | Q44: 3 | R44: 4 | S44: 40.5 | T44: 0.03 | U44: =S44+1 -> 41.5 | V44: 0.04 | W44: =IF(AND(L44="WIN",L45<>"WIN"),SUMIF(L$24:L44,"WIN",K$24:K44)-SUM(W$23:W43),"") ->  | X44: =IF(AND(L44="LOSS",L45<>"LOSS"),SUMIF(L$24:L44,"LOSS",K$24:K44)-SUM(X$23:X43),"") -> 
B45: Row 45 (22) | D45: 21 | F45: 11014.72192 | H45: 110.1472192 | K45: 132.176663 | L45: WIN | M45: =IF(COUNTA($F$6:$F$10)=5,(F46-F24)/F24,"") -> 0.114689858 | N45: 5 | O45: last | P45: 4 | Q45: 9 | R45: 10 | S45: 42.5 | T45: 0.072 | U45: =S45+1 -> 43.5 | V45: 0.08 | W45: =IF(AND(L45="WIN",L46<>"WIN"),SUMIF(L$24:L45,"WIN",K$24:K45)-SUM(W$23:W44),"") -> 645.394941 | X45: =IF(AND(L45="LOSS",L46<>"LOSS"),SUMIF(L$24:L45,"LOSS",K$24:K45)-SUM(X$23:X44),"") -> 
B46: Row 46 (23) | D46: 61 | F46: 11146.89858 | H46: 111.4689858 | K46: -111.4689858 | L46: LOSS | M46: =IF(COUNTA($F$6:$F$10)=5,(F47-F24)/F24,"") -> 0.1035429595 | N46: 1 | O46: last | P46: 3 | Q46: 20 | R46: 15 | S46: 44.5 | T46: 0.12 | U46: 45.5 | V46: 0.09 | W46: =IF(AND(L46="WIN",L47<>"WIN"),SUMIF(L$24:L46,"WIN",K$24:K46)-SUM(W$23:W45),"") ->  | X46: =IF(AND(L46="LOSS",L47<>"LOSS"),SUMIF(L$24:L46,"LOSS",K$24:K46)-SUM(X$23:X45),"") -> -111.4689858
B47: Row 47 (24) | D47: 48 | F47: 11035.42959 | H47: 110.3542959 | K47: 132.4251551 | L47: WIN | M47: =IF(COUNTA($F$6:$F$10)=5,(F48-F24)/F24,"") -> 0.116785475 | N47: 1 | O47: new | P47: 2 | Q47: 27 | R47: 25 | S47: 46.5 | T47: 0.108 | U47: 47.5 | V47: 0.1 | W47: =IF(AND(L47="WIN",L48<>"WIN"),SUMIF(L$24:L47,"WIN",K$24:K47)-SUM(W$23:W46),"") ->  | X47: =IF(AND(L47="LOSS",L48<>"LOSS"),SUMIF(L$24:L47,"LOSS",K$24:K47)-SUM(X$23:X46),"") -> 
B48: Row 48 (25) | D48: 42 | F48: 11167.85475 | H48: 111.6785475 | K48: 134.014257 | L48: WIN | M48: =IF(COUNTA($F$6:$F$10)=5,(F49-F24)/F24,"") -> 0.1301869007 | N48: 2 | O48: middle | P48: 1 | Q48: 58 | R48: 68 | S48: 48.5 | T48: =IF(Q48=0,"",Q48*$P48/500) -> 0.116 | U48: 49.5 | V48: =IF(R48=0,"",R48*$P48/500) -> 0.136 | W48: =IF(AND(L48="WIN",L49<>"WIN"),SUMIF(L$24:L48,"WIN",K$24:K48)-SUM(W$23:W47),"") ->  | X48: =IF(AND(L48="LOSS",L49<>"LOSS"),SUMIF(L$24:L48,"LOSS",K$24:K48)-SUM(X$23:X47),"") -> 
B49: Row 49 (26) | D49: 7 | F49: 11301.86901 | H49: 113.0186901 | K49: 135.6224281 | L49: WIN | M49: =IF(COUNTA($F$6:$F$10)=5,(F50-F24)/F24,"") -> 0.1437491435 | N49: 3 | O49: middle | W49: =IF(AND(L49="WIN",L50<>"WIN"),SUMIF(L$24:L49,"WIN",K$24:K49)-SUM(W$23:W48),"") ->  | X49: =IF(AND(L49="LOSS",L50<>"LOSS"),SUMIF(L$24:L49,"LOSS",K$24:K49)-SUM(X$23:X48),"") -> 
B50: Row 50 (27) | D50: 37 | F50: 11437.49143 | H50: 114.3749143 | K50: 137.2498972 | L50: WIN | M50: =IF(COUNTA($F$6:$F$10)=5,(F51-F24)/F24,"") -> 0.1574741332 | N50: 4 | O50: middle | W50: =IF(AND(L50="WIN",L51<>"WIN"),SUMIF(L$24:L50,"WIN",K$24:K50)-SUM(W$23:W49),"") ->  | X50: =IF(AND(L50="LOSS",L51<>"LOSS"),SUMIF(L$24:L50,"LOSS",K$24:K50)-SUM(X$23:X49),"") -> 
B51: Row 51 (28) | D51: 33 | F51: 11574.74133 | H51: 115.7474133 | K51: 138.896896 | L51: WIN | M51: =IF(COUNTA($F$6:$F$10)=5,(F52-F24)/F24,"") -> 0.1713638228 | N51: 5 | O51: middle | W51: =IF(AND(L51="WIN",L52<>"WIN"),SUMIF(L$24:L51,"WIN",K$24:K51)-SUM(W$23:W50),"") ->  | X51: =IF(AND(L51="LOSS",L52<>"LOSS"),SUMIF(L$24:L51,"LOSS",K$24:K51)-SUM(X$23:X50),"") -> 
B52: Row 52 (29) | D52: 40 | F52: 11713.63823 | H52: 117.1363823 | K52: 140.5636587 | L52: WIN | M52: =IF(COUNTA($F$6:$F$10)=5,(F53-F24)/F24,"") -> 0.1854201887 | N52: 6 | O52: middle | W52: =IF(AND(L52="WIN",L53<>"WIN"),SUMIF(L$24:L52,"WIN",K$24:K52)-SUM(W$23:W51),"") ->  | X52: =IF(AND(L52="LOSS",L53<>"LOSS"),SUMIF(L$24:L52,"LOSS",K$24:K52)-SUM(X$23:X51),"") -> 
B53: Row 53 (30) | D53: 17 | F53: 11854.20189 | H53: 118.5420189 | K53: 142.2504226 | L53: WIN | M53: =IF(COUNTA($F$6:$F$10)=5,(F54-F24)/F24,"") -> 0.1996452309 | N53: 7 | O53: last | W53: =IF(AND(L53="WIN",L54<>"WIN"),SUMIF(L$24:L53,"WIN",K$24:K53)-SUM(W$23:W52),"") -> 961.0227148 | X53: =IF(AND(L53="LOSS",L54<>"LOSS"),SUMIF(L$24:L53,"LOSS",K$24:K53)-SUM(X$23:X52),"") -> 
B54: Row 54 (31) | D54: 72 | F54: 11996.45231 | H54: 119.9645231 | K54: -119.9645231 | L54: LOSS | M54: =IF(COUNTA($F$6:$F$10)=5,(F55-F24)/F24,"") -> 0.1876487786 | N54: 1 | O54: last | W54: =IF(AND(L54="WIN",L55<>"WIN"),SUMIF(L$24:L54,"WIN",K$24:K54)-SUM(W$23:W53),"") ->  | X54: =IF(AND(L54="LOSS",L55<>"LOSS"),SUMIF(L$24:L54,"LOSS",K$24:K54)-SUM(X$23:X53),"") -> -119.9645231
B55: Row 55 (32) | D55: 25 | F55: 11876.48779 | H55: 118.7648779 | K55: 142.5178534 | L55: WIN | M55: =IF(COUNTA($F$6:$F$10)=5,(F56-F24)/F24,"") -> 0.201900564 | N55: 1 | O55: new | W55: =IF(AND(L55="WIN",L56<>"WIN"),SUMIF(L$24:L55,"WIN",K$24:K55)-SUM(W$23:W54),"") ->  | X55: =IF(AND(L55="LOSS",L56<>"LOSS"),SUMIF(L$24:L55,"LOSS",K$24:K55)-SUM(X$23:X54),"") -> 
B56: Row 56 (33) | D56: 11 | F56: 12019.00564 | H56: 120.1900564 | K56: 144.2280677 | L56: WIN | M56: =IF(COUNTA($F$6:$F$10)=5,(F57-F24)/F24,"") -> 0.2163233708 | N56: 2 | O56: last | W56: =IF(AND(L56="WIN",L57<>"WIN"),SUMIF(L$24:L56,"WIN",K$24:K56)-SUM(W$23:W55),"") -> 286.7459211 | X56: =IF(AND(L56="LOSS",L57<>"LOSS"),SUMIF(L$24:L56,"LOSS",K$24:K56)-SUM(X$23:X55),"") -> 
B57: Row 57 (34) | D57: 58 | F57: 12163.23371 | H57: 121.6323371 | K57: -121.6323371 | L57: LOSS | M57: =IF(COUNTA($F$6:$F$10)=5,(F58-F24)/F24,"") -> 0.204160137 | N57: 1 | O57: new | W57: =IF(AND(L57="WIN",L58<>"WIN"),SUMIF(L$24:L57,"WIN",K$24:K57)-SUM(W$23:W56),"") ->  | X57: =IF(AND(L57="LOSS",L58<>"LOSS"),SUMIF(L$24:L57,"LOSS",K$24:K57)-SUM(X$23:X56),"") -> 
B58: Row 58 (35) | D58: 91 | F58: 12041.60137 | H58: 120.4160137 | K58: -120.4160137 | L58: LOSS | M58: =IF(COUNTA($F$6:$F$10)=5,(F59-F24)/F24,"") -> 0.1921185357 | N58: 2 | O58: last | W58: =IF(AND(L58="WIN",L59<>"WIN"),SUMIF(L$24:L58,"WIN",K$24:K58)-SUM(W$23:W57),"") ->  | X58: =IF(AND(L58="LOSS",L59<>"LOSS"),SUMIF(L$24:L58,"LOSS",K$24:K58)-SUM(X$23:X57),"") -> -242.0483508
B59: Row 59 (36) | D59: 7 | F59: 11921.18536 | H59: 119.2118536 | K59: 143.0542243 | L59: WIN | M59: =IF(COUNTA($F$6:$F$10)=5,(F60-F24)/F24,"") -> 0.2064239581 | N59: 1 | O59: last | W59: =IF(AND(L59="WIN",L60<>"WIN"),SUMIF(L$24:L59,"WIN",K$24:K59)-SUM(W$23:W58),"") -> 143.0542243 | X59: =IF(AND(L59="LOSS",L60<>"LOSS"),SUMIF(L$24:L59,"LOSS",K$24:K59)-SUM(X$23:X58),"") -> 
B60: Row 60 (37) | D60: 95 | F60: 12064.23958 | H60: 120.6423958 | K60: -120.6423958 | L60: LOSS | M60: =IF(COUNTA($F$6:$F$10)=5,(F61-F24)/F24,"") -> 0.1943597185 | N60: 1 | O60: last | W60: =IF(AND(L60="WIN",L61<>"WIN"),SUMIF(L$24:L60,"WIN",K$24:K60)-SUM(W$23:W59),"") ->  | X60: =IF(AND(L60="LOSS",L61<>"LOSS"),SUMIF(L$24:L60,"LOSS",K$24:K60)-SUM(X$23:X59),"") -> -120.6423958
B61: Row 61 (38) | D61: 5 | F61: 11943.59719 | H61: 119.4359719 | K61: 143.3231662 | L61: WIN | M61: =IF(COUNTA($F$6:$F$10)=5,(F62-F24)/F24,"") -> 0.2086920351 | N61: 1 | O61: last | W61: =IF(AND(L61="WIN",L62<>"WIN"),SUMIF(L$24:L61,"WIN",K$24:K61)-SUM(W$23:W60),"") -> 143.3231662 | X61: =IF(AND(L61="LOSS",L62<>"LOSS"),SUMIF(L$24:L61,"LOSS",K$24:K61)-SUM(X$23:X60),"") -> 
B62: Row 62 (39) | D62: 73 | F62: 12086.92035 | H62: 120.8692035 | K62: -120.8692035 | L62: LOSS | M62: =IF(COUNTA($F$6:$F$10)=5,(F63-F24)/F24,"") -> 0.1966051148 | N62: 1 | O62: last | W62: =IF(AND(L62="WIN",L63<>"WIN"),SUMIF(L$24:L62,"WIN",K$24:K62)-SUM(W$23:W61),"") ->  | X62: =IF(AND(L62="LOSS",L63<>"LOSS"),SUMIF(L$24:L62,"LOSS",K$24:K62)-SUM(X$23:X61),"") -> -120.8692035
B63: Row 63 (40) | D63: 1 | F63: 11966.05115 | H63: 119.6605115 | K63: 143.5926138 | L63: WIN | M63: =IF(COUNTA($F$6:$F$10)=5,(F64-F24)/F24,"") -> 0.2109643762 | N63: 1 | O63: new | W63: =IF(AND(L63="WIN",L64<>"WIN"),SUMIF(L$24:L63,"WIN",K$24:K63)-SUM(W$23:W62),"") ->  | X63: =IF(AND(L63="LOSS",L64<>"LOSS"),SUMIF(L$24:L63,"LOSS",K$24:K63)-SUM(X$23:X62),"") -> 
B64: Row 64 (41) | D64: 50 | F64: 12109.64376 | H64: 121.0964376 | K64: 145.3157251 | L64: WIN | M64: =IF(COUNTA($F$6:$F$10)=5,(F65-F24)/F24,"") -> 0.2254959487 | N64: 2 | O64: last | W64: =IF(AND(L64="WIN",L65<>"WIN"),SUMIF(L$24:L64,"WIN",K$24:K64)-SUM(W$23:W63),"") -> 288.9083389 | X64: =IF(AND(L64="LOSS",L65<>"LOSS"),SUMIF(L$24:L64,"LOSS",K$24:K64)-SUM(X$23:X63),"") -> 
B65: Row 65 (42) | D65: 87 | F65: 12254.95949 | H65: 122.5495949 | K65: -122.5495949 | L65: LOSS | M65: =IF(COUNTA($F$6:$F$10)=5,(F66-F24)/F24,"") -> 0.2132409892 | N65: 1 | O65: last | W65: =IF(AND(L65="WIN",L66<>"WIN"),SUMIF(L$24:L65,"WIN",K$24:K65)-SUM(W$23:W64),"") ->  | X65: =IF(AND(L65="LOSS",L66<>"LOSS"),SUMIF(L$24:L65,"LOSS",K$24:K65)-SUM(X$23:X64),"") -> -122.5495949
B66: Row 66 (43) | D66: 37 | F66: 12132.40989 | H66: 121.3240989 | K66: 145.5889187 | L66: WIN | M66: =IF(COUNTA($F$6:$F$10)=5,(F67-F24)/F24,"") -> 0.2277998811 | N66: 1 | O66: last | W66: =IF(AND(L66="WIN",L67<>"WIN"),SUMIF(L$24:L66,"WIN",K$24:K66)-SUM(W$23:W65),"") -> 145.5889187 | X66: =IF(AND(L66="LOSS",L67<>"LOSS"),SUMIF(L$24:L66,"LOSS",K$24:K66)-SUM(X$23:X65),"") -> 
B67: Row 67 (44) | D67: 70 | F67: 12277.99881 | H67: 122.7799881 | K67: -122.7799881 | L67: LOSS | M67: =IF(COUNTA($F$6:$F$10)=5,(F68-F24)/F24,"") -> 0.2155218823 | N67: 1 | O67: last | W67: =IF(AND(L67="WIN",L68<>"WIN"),SUMIF(L$24:L67,"WIN",K$24:K67)-SUM(W$23:W66),"") ->  | X67: =IF(AND(L67="LOSS",L68<>"LOSS"),SUMIF(L$24:L67,"LOSS",K$24:K67)-SUM(X$23:X66),"") -> -122.7799881
B68: Row 68 (45) | D68: 34 | F68: 12155.21882 | H68: 121.5521882 | K68: 145.8626259 | L68: WIN | M68: =IF(COUNTA($F$6:$F$10)=5,(F69-F24)/F24,"") -> 0.2301081448 | N68: 1 | O68: new | W68: =IF(AND(L68="WIN",L69<>"WIN"),SUMIF(L$24:L68,"WIN",K$24:K68)-SUM(W$23:W67),"") ->  | X68: =IF(AND(L68="LOSS",L69<>"LOSS"),SUMIF(L$24:L68,"LOSS",K$24:K68)-SUM(X$23:X67),"") -> 
B69: Row 69 (46) | D69: 27 | F69: 12301.08145 | H69: 123.0108145 | K69: 147.6129774 | L69: WIN | M69: =IF(COUNTA($F$6:$F$10)=5,(F70-F24)/F24,"") -> 0.2448694426 | N69: 2 | O69: last | W69: =IF(AND(L69="WIN",L70<>"WIN"),SUMIF(L$24:L69,"WIN",K$24:K69)-SUM(W$23:W68),"") -> 293.4756033 | X69: =IF(AND(L69="LOSS",L70<>"LOSS"),SUMIF(L$24:L69,"LOSS",K$24:K69)-SUM(X$23:X68),"") -> 
B70: Row 70 (47) | D70: 73 | F70: 12448.69443 | H70: 124.4869443 | K70: -124.4869443 | L70: LOSS | M70: =IF(COUNTA($F$6:$F$10)=5,(F71-F24)/F24,"") -> 0.2324207482 | N70: 1 | O70: new | W70: =IF(AND(L70="WIN",L71<>"WIN"),SUMIF(L$24:L70,"WIN",K$24:K70)-SUM(W$23:W69),"") ->  | X70: =IF(AND(L70="LOSS",L71<>"LOSS"),SUMIF(L$24:L70,"LOSS",K$24:K70)-SUM(X$23:X69),"") -> 
B71: Row 71 (48) | D71: 68 | F71: 12324.20748 | H71: 123.2420748 | K71: -123.2420748 | L71: LOSS | M71: =IF(COUNTA($F$6:$F$10)=5,(F72-F24)/F24,"") -> 0.2200965407 | N71: 2 | O71: last | W71: =IF(AND(L71="WIN",L72<>"WIN"),SUMIF(L$24:L71,"WIN",K$24:K71)-SUM(W$23:W70),"") ->  | X71: =IF(AND(L71="LOSS",L72<>"LOSS"),SUMIF(L$24:L71,"LOSS",K$24:K71)-SUM(X$23:X70),"") -> -247.7290191
B72: Row 72 (49) | D72: 40 | F72: 12200.96541 | H72: 122.0096541 | K72: 146.4115849 | L72: WIN | M72: =IF(COUNTA($F$6:$F$10)=5,(F73-F24)/F24,"") -> 0.2347376992 | N72: 1 | O72: last | W72: =IF(AND(L72="WIN",L73<>"WIN"),SUMIF(L$24:L72,"WIN",K$24:K72)-SUM(W$23:W71),"") -> 146.4115849 | X72: =IF(AND(L72="LOSS",L73<>"LOSS"),SUMIF(L$24:L72,"LOSS",K$24:K72)-SUM(X$23:X71),"") -> 
B73: Row 73 (50) | D73: 94 | F73: 12347.37699 | H73: 123.4737699 | K73: -123.4737699 | L73: LOSS | M73: =IF(COUNTA($F$6:$F$10)=5,(F74-F24)/F24,"") -> 0.2223903222 | N73: 1 | O73: last | W73: =IF(AND(L73="WIN",L74<>"WIN"),SUMIF(L$24:L73,"WIN",K$24:K73)-SUM(W$23:W72),"") ->  | X73: =IF(AND(L73="LOSS",L74<>"LOSS"),SUMIF(L$24:L73,"LOSS",K$24:K73)-SUM(X$23:X72),"") -> -123.4737699
B74: Row 74 (51) | D74: 25 | F74: 12223.90322 | H74: 122.2390322 | K74: 146.6868387 | L74: WIN | M74: =IF(COUNTA($F$6:$F$10)=5,(F75-F24)/F24,"") -> 0.237059006 | N74: 1 | O74: last | W74: =IF(AND(L74="WIN",L75<>"WIN"),SUMIF(L$24:L74,"WIN",K$24:K74)-SUM(W$23:W73),"") -> 146.6868387 | X74: =IF(AND(L74="LOSS",L75<>"LOSS"),SUMIF(L$24:L74,"LOSS",K$24:K74)-SUM(X$23:X73),"") -> 
B75: Row 75 (52) | D75: 79 | F75: 12370.59006 | H75: 123.7059006 | K75: -123.7059006 | L75: LOSS | M75: =IF(COUNTA($F$6:$F$10)=5,(F76-F24)/F24,"") -> 0.224688416 | N75: 1 | O75: new | W75: =IF(AND(L75="WIN",L76<>"WIN"),SUMIF(L$24:L75,"WIN",K$24:K75)-SUM(W$23:W74),"") ->  | X75: =IF(AND(L75="LOSS",L76<>"LOSS"),SUMIF(L$24:L75,"LOSS",K$24:K75)-SUM(X$23:X74),"") -> 
B76: Row 76 (53) | D76: 98 | F76: 12246.88416 | H76: 122.4688416 | K76: -122.4688416 | L76: LOSS | M76: =IF(COUNTA($F$6:$F$10)=5,(F77-F24)/F24,"") -> 0.2124415318 | N76: 2 | O76: last | W76: =IF(AND(L76="WIN",L77<>"WIN"),SUMIF(L$24:L76,"WIN",K$24:K76)-SUM(W$23:W75),"") ->  | X76: =IF(AND(L76="LOSS",L77<>"LOSS"),SUMIF(L$24:L76,"LOSS",K$24:K76)-SUM(X$23:X75),"") -> -246.1747422
B77: Row 77 (54) | D77: 50 | F77: 12124.41532 | H77: 121.2441532 | K77: 145.4929838 | L77: WIN | M77: =IF(COUNTA($F$6:$F$10)=5,(F78-F24)/F24,"") -> 0.2269908302 | N77: 1 | O77: last | W77: =IF(AND(L77="WIN",L78<>"WIN"),SUMIF(L$24:L77,"WIN",K$24:K77)-SUM(W$23:W76),"") -> 145.4929838 | X77: =IF(AND(L77="LOSS",L78<>"LOSS"),SUMIF(L$24:L77,"LOSS",K$24:K77)-SUM(X$23:X76),"") -> 
B78: Row 78 (55) | D78: 97 | F78: 12269.9083 | H78: 122.699083 | K78: -122.699083 | L78: LOSS | M78: =IF(COUNTA($F$6:$F$10)=5,(F79-F24)/F24,"") -> 0.2147209219 | N78: 1 | O78: new | W78: =IF(AND(L78="WIN",L79<>"WIN"),SUMIF(L$24:L78,"WIN",K$24:K78)-SUM(W$23:W77),"") ->  | X78: =IF(AND(L78="LOSS",L79<>"LOSS"),SUMIF(L$24:L78,"LOSS",K$24:K78)-SUM(X$23:X77),"") -> 
B79: Row 79 (56) | D79: 73 | F79: 12147.20922 | H79: 121.4720922 | K79: -121.4720922 | L79: LOSS | M79: =IF(COUNTA($F$6:$F$10)=5,(F80-F24)/F24,"") -> 0.2025737127 | N79: 2 | O79: middle | W79: =IF(AND(L79="WIN",L80<>"WIN"),SUMIF(L$24:L79,"WIN",K$24:K79)-SUM(W$23:W78),"") ->  | X79: =IF(AND(L79="LOSS",L80<>"LOSS"),SUMIF(L$24:L79,"LOSS",K$24:K79)-SUM(X$23:X78),"") -> 
B80: Row 80 (57) | D80: 91 | F80: 12025.73713 | H80: 120.2573713 | K80: -120.2573713 | L80: LOSS | M80: =IF(COUNTA($F$6:$F$10)=5,(F81-F24)/F24,"") -> 0.1905479755 | N80: 3 | O80: last | W80: =IF(AND(L80="WIN",L81<>"WIN"),SUMIF(L$24:L80,"WIN",K$24:K80)-SUM(W$23:W79),"") ->  | X80: =IF(AND(L80="LOSS",L81<>"LOSS"),SUMIF(L$24:L80,"LOSS",K$24:K80)-SUM(X$23:X79),"") -> -364.4285465
B81: Row 81 (58) | D81: 48 | F81: 11905.47976 | H81: 119.0547976 | K81: 142.8657571 | L81: WIN | M81: =IF(COUNTA($F$6:$F$10)=5,(F82-F24)/F24,"") -> 0.2048345513 | N81: 1 | O81: last | W81: =IF(AND(L81="WIN",L82<>"WIN"),SUMIF(L$24:L81,"WIN",K$24:K81)-SUM(W$23:W80),"") -> 142.8657571 | X81: =IF(AND(L81="LOSS",L82<>"LOSS"),SUMIF(L$24:L81,"LOSS",K$24:K81)-SUM(X$23:X80),"") -> 
B82: Row 82 (59) | D82: 97 | F82: 12048.34551 | H82: 120.4834551 | K82: -120.4834551 | L82: LOSS | M82: =IF(COUNTA($F$6:$F$10)=5,(F83-F24)/F24,"") -> 0.1927862057 | N82: 1 | O82: last | W82: =IF(AND(L82="WIN",L83<>"WIN"),SUMIF(L$24:L82,"WIN",K$24:K82)-SUM(W$23:W81),"") ->  | X82: =IF(AND(L82="LOSS",L83<>"LOSS"),SUMIF(L$24:L82,"LOSS",K$24:K82)-SUM(X$23:X81),"") -> -120.4834551
B83: Row 83 (60) | D83: 22 | F83: 11927.86206 | H83: 119.2786206 | K83: 143.1343447 | L83: WIN | M83: =IF(COUNTA($F$6:$F$10)=5,(F84-F24)/F24,"") -> 0.2070996402 | N83: 1 | O83: new | W83: =IF(AND(L83="WIN",L84<>"WIN"),SUMIF(L$24:L83,"WIN",K$24:K83)-SUM(W$23:W82),"") ->  | X83: =IF(AND(L83="LOSS",L84<>"LOSS"),SUMIF(L$24:L83,"LOSS",K$24:K83)-SUM(X$23:X82),"") -> 
B84: Row 84 (61) | D84: 9 | F84: 12070.9964 | H84: 120.709964 | K84: 144.8519568 | L84: WIN | M84: =IF(COUNTA($F$6:$F$10)=5,(F85-F24)/F24,"") -> 0.2215848359 | N84: 2 | O84: middle | W84: =IF(AND(L84="WIN",L85<>"WIN"),SUMIF(L$24:L84,"WIN",K$24:K84)-SUM(W$23:W83),"") ->  | X84: =IF(AND(L84="LOSS",L85<>"LOSS"),SUMIF(L$24:L84,"LOSS",K$24:K84)-SUM(X$23:X83),"") -> 
B85: Row 85 (62) | D85: 51 | F85: 12215.84836 | H85: 122.1584836 | K85: 146.5901803 | L85: WIN | M85: =IF(COUNTA($F$6:$F$10)=5,(F86-F24)/F24,"") -> 0.2362438539 | N85: 3 | O85: middle | W85: =IF(AND(L85="WIN",L86<>"WIN"),SUMIF(L$24:L85,"WIN",K$24:K85)-SUM(W$23:W84),"") ->  | X85: =IF(AND(L85="LOSS",L86<>"LOSS"),SUMIF(L$24:L85,"LOSS",K$24:K85)-SUM(X$23:X84),"") -> 
B86: Row 86 (63) | D86: 47 | F86: 12362.43854 | H86: 123.6243854 | K86: 148.3492625 | L86: WIN | M86: =IF(COUNTA($F$6:$F$10)=5,(F87-F24)/F24,"") -> 0.2510787802 | N86: 4 | O86: middle | W86: =IF(AND(L86="WIN",L87<>"WIN"),SUMIF(L$24:L86,"WIN",K$24:K86)-SUM(W$23:W85),"") ->  | X86: =IF(AND(L86="LOSS",L87<>"LOSS"),SUMIF(L$24:L86,"LOSS",K$24:K86)-SUM(X$23:X85),"") -> 
B87: Row 87 (64) | D87: 12 | F87: 12510.7878 | H87: 125.107878 | K87: 150.1294536 | L87: WIN | M87: =IF(COUNTA($F$6:$F$10)=5,(F88-F24)/F24,"") -> 0.2660917255 | N87: 5 | O87: last | W87: =IF(AND(L87="WIN",L88<>"WIN"),SUMIF(L$24:L87,"WIN",K$24:K87)-SUM(W$23:W86),"") -> 733.0551979 | X87: =IF(AND(L87="LOSS",L88<>"LOSS"),SUMIF(L$24:L87,"LOSS",K$24:K87)-SUM(X$23:X86),"") -> 
B88: Row 88 (65) | D88: 96 | F88: 12660.91726 | H88: 126.6091726 | K88: -126.6091726 | L88: LOSS | M88: =IF(COUNTA($F$6:$F$10)=5,(F89-F24)/F24,"") -> 0.2534308083 | N88: 1 | O88: new | W88: =IF(AND(L88="WIN",L89<>"WIN"),SUMIF(L$24:L88,"WIN",K$24:K88)-SUM(W$23:W87),"") ->  | X88: =IF(AND(L88="LOSS",L89<>"LOSS"),SUMIF(L$24:L88,"LOSS",K$24:K88)-SUM(X$23:X87),"") -> 
B89: Row 89 (66) | D89: 98 | F89: 12534.30808 | H89: =IF(COUNTBLANK($F$6:$F$10),"",F89*$F$7) -> 125.3430808 | K89: -125.3430808 | L89: =IF(D89="","",IF(D89<$F$8,"WIN","LOSS")) -> LOSS | M89: =IF(COUNTA($F$6:$F$10)=5,(F90-F24)/F24,"") -> 0.2408965002 | N89: =IF(L89=L88,N88+1,1) -> 2 | O89: =IF(N89=1,IF(N90=1,"last","new"),IF(N90=1,"last","middle")) -> last | W89: =IF(AND(L89="WIN",L90<>"WIN"),SUMIF(L$24:L89,"WIN",K$24:K89)-SUM(W$23:W88),"") ->  | X89: =IF(AND(L89="LOSS",L90<>"LOSS"),SUMIF(L$24:L89,"LOSS",K$24:K89)-SUM(X$23:X88),"") -> -251.9522534
B90: Row 90 (67) | D90: 13 | F90: =IF(COUNTBLANK($F$6:$F$10),"",IF(D89<$F$8,(1+$F$7*$F$9)*F89-$F$10,(1-$F$7)*F89-$F$10)) -> 12408.965 | H90: 124.08965 | K90: =IF(COUNTBLANK($F$6:$F$10),"", IF(L90="win", H90*$F$9-$F$10, IF(L90="loss", -H90-$F$10))) -> 148.90758 | L90: WIN | M90: =IF(COUNTA($F$6:$F$10)=5,(F91-F24)/F24,"") -> 0.2557872582 | N90: 1 | O90: last | W90: =IF(AND(L90="WIN",L91<>"WIN"),SUMIF(L$24:L90,"WIN",K$24:K90)-SUM(W$23:W89),"") -> 148.90758 | X90: =IF(AND(L90="LOSS",L91<>"LOSS"),SUMIF(L$24:L90,"LOSS",K$24:K90)-SUM(X$23:X89),"") -> 
B91: Row 91 (68) | D91: 70 | F91: 12557.87258 | H91: 125.5787258 | K91: -125.5787258 | L91: LOSS | M91: =IF(COUNTA($F$6:$F$10)=5,(F92-F24)/F24,"") -> 0.2432293856 | N91: 1 | O91: last | W91: =IF(AND(L91="WIN",L92<>"WIN"),SUMIF(L$24:L91,"WIN",K$24:K91)-SUM(W$23:W90),"") ->  | X91: =IF(AND(L91="LOSS",L92<>"LOSS"),SUMIF(L$24:L91,"LOSS",K$24:K91)-SUM(X$23:X90),"") -> -125.5787258
B92: Row 92 (69) | D92: 12 | F92: 12432.29386 | H92: 124.3229386 | K92: 149.1875263 | L92: WIN | M92: =IF(COUNTA($F$6:$F$10)=5,(F93-F24)/F24,"") -> 0.2581481382 | N92: 1 | O92: new | W92: =IF(AND(L92="WIN",L93<>"WIN"),SUMIF(L$24:L92,"WIN",K$24:K92)-SUM(W$23:W91),"") ->  | X92: =IF(AND(L92="LOSS",L93<>"LOSS"),SUMIF(L$24:L92,"LOSS",K$24:K92)-SUM(X$23:X91),"") -> 
B93: Row 93 (70) | D93: 48 | F93: 12581.48138 | H93: 125.8148138 | K93: 150.9777766 | L93: WIN | M93: =IF(COUNTA($F$6:$F$10)=5,(F94-F24)/F24,"") -> 0.2732459159 | N93: 2 | O93: middle | W93: =IF(AND(L93="WIN",L94<>"WIN"),SUMIF(L$24:L93,"WIN",K$24:K93)-SUM(W$23:W92),"") ->  | X93: =IF(AND(L93="LOSS",L94<>"LOSS"),SUMIF(L$24:L93,"LOSS",K$24:K93)-SUM(X$23:X92),"") -> 
B94: Row 94 (71) | D94: 27 | F94: 12732.45916 | H94: 127.3245916 | K94: 152.7895099 | L94: WIN | M94: =IF(COUNTA($F$6:$F$10)=5,(F95-F24)/F24,"") -> 0.2885248669 | N94: 3 | O94: middle | W94: =IF(AND(L94="WIN",L95<>"WIN"),SUMIF(L$24:L94,"WIN",K$24:K94)-SUM(W$23:W93),"") ->  | X94: =IF(AND(L94="LOSS",L95<>"LOSS"),SUMIF(L$24:L94,"LOSS",K$24:K94)-SUM(X$23:X93),"") -> 
B95: Row 95 (72) | D95: 49 | F95: 12885.24867 | H95: 128.8524867 | K95: 154.622984 | L95: WIN | M95: =IF(COUNTA($F$6:$F$10)=5,(F96-F24)/F24,"") -> 0.3039871653 | N95: 4 | O95: last | W95: =IF(AND(L95="WIN",L96<>"WIN"),SUMIF(L$24:L95,"WIN",K$24:K95)-SUM(W$23:W94),"") -> 607.5777968 | X95: =IF(AND(L95="LOSS",L96<>"LOSS"),SUMIF(L$24:L95,"LOSS",K$24:K95)-SUM(X$23:X94),"") -> 
B96: Row 96 (73) | D96: 99 | F96: 13039.87165 | H96: 130.3987165 | K96: -130.3987165 | L96: LOSS | M96: =IF(COUNTA($F$6:$F$10)=5,(F97-F24)/F24,"") -> 0.2909472936 | N96: 1 | O96: new | W96: =IF(AND(L96="WIN",L97<>"WIN"),SUMIF(L$24:L96,"WIN",K$24:K96)-SUM(W$23:W95),"") ->  | X96: =IF(AND(L96="LOSS",L97<>"LOSS"),SUMIF(L$24:L96,"LOSS",K$24:K96)-SUM(X$23:X95),"") -> 
B97: Row 97 (74) | D97: 79 | F97: 12909.47294 | H97: 129.0947294 | K97: -129.0947294 | L97: LOSS | M97: =IF(COUNTA($F$6:$F$10)=5,(F98-F24)/F24,"") -> 0.2780378207 | N97: 2 | O97: middle | W97: =IF(AND(L97="WIN",L98<>"WIN"),SUMIF(L$24:L97,"WIN",K$24:K97)-SUM(W$23:W96),"") ->  | X97: =IF(AND(L97="LOSS",L98<>"LOSS"),SUMIF(L$24:L97,"LOSS",K$24:K97)-SUM(X$23:X96),"") -> 
B98: Row 98 (75) | D98: 74 | F98: 12780.37821 | H98: 127.8037821 | K98: -127.8037821 | L98: LOSS | M98: =IF(COUNTA($F$6:$F$10)=5,(F99-F24)/F24,"") -> 0.2652574425 | N98: 3 | O98: middle | W98: =IF(AND(L98="WIN",L99<>"WIN"),SUMIF(L$24:L98,"WIN",K$24:K98)-SUM(W$23:W97),"") ->  | X98: =IF(AND(L98="LOSS",L99<>"LOSS"),SUMIF(L$24:L98,"LOSS",K$24:K98)-SUM(X$23:X97),"") -> 
B99: Row 99 (76) | D99: 65 | F99: 12652.57443 | H99: 126.5257443 | K99: -126.5257443 | L99: LOSS | M99: =IF(COUNTA($F$6:$F$10)=5,(F100-F24)/F24,"") -> 0.2526048681 | N99: 4 | O99: last | W99: =IF(AND(L99="WIN",L100<>"WIN"),SUMIF(L$24:L99,"WIN",K$24:K99)-SUM(W$23:W98),"") ->  | X99: =IF(AND(L99="LOSS",L100<>"LOSS"),SUMIF(L$24:L99,"LOSS",K$24:K99)-SUM(X$23:X98),"") -> -513.8229722
B100: Row 100 (77) | D100: 14 | F100: 12526.04868 | H100: 125.2604868 | K100: 150.3125842 | L100: WIN | M100: =IF(COUNTA($F$6:$F$10)=5,(F101-F24)/F24,"") -> 0.2676361265 | N100: 1 | O100: new | W100: =IF(AND(L100="WIN",L101<>"WIN"),SUMIF(L$24:L100,"WIN",K$24:K100)-SUM(W$23:W99),"") ->  | X100: =IF(AND(L100="LOSS",L101<>"LOSS"),SUMIF(L$24:L100,"LOSS",K$24:K100)-SUM(X$23:X99),"") -> 
B101: Row 101 (78) | D101: 26 | F101: 12676.36126 | H101: 126.7636126 | K101: 152.1163352 | L101: WIN | M101: =IF(COUNTA($F$6:$F$10)=5,(F102-F24)/F24,"") -> 0.28284776 | N101: 2 | O101: middle | W101: =IF(AND(L101="WIN",L102<>"WIN"),SUMIF(L$24:L101,"WIN",K$24:K101)-SUM(W$23:W100),"") ->  | X101: =IF(AND(L101="LOSS",L102<>"LOSS"),SUMIF(L$24:L101,"LOSS",K$24:K101)-SUM(X$23:X100),"") -> 
B102: Row 102 (79) | D102: 30 | F102: 12828.4776 | H102: 128.284776 | K102: 153.9417312 | L102: WIN | M102: =IF(COUNTA($F$6:$F$10)=5,(F103-F24)/F24,"") -> 0.2982419331 | N102: 3 | O102: last | W102: =IF(AND(L102="WIN",L103<>"WIN"),SUMIF(L$24:L102,"WIN",K$24:K102)-SUM(W$23:W101),"") -> 456.3706505 | X102: =IF(AND(L102="LOSS",L103<>"LOSS"),SUMIF(L$24:L102,"LOSS",K$24:K102)-SUM(X$23:X101),"") -> 
B103: Row 103 (80) | D103: 57 | F103: 12982.41933 | H103: 129.8241933 | K103: -129.8241933 | L103: LOSS | M103: =IF(COUNTA($F$6:$F$10)=5,(F104-F24)/F24,"") -> 0.2852595138 | N103: 1 | O103: last | W103: =IF(AND(L103="WIN",L104<>"WIN"),SUMIF(L$24:L103,"WIN",K$24:K103)-SUM(W$23:W102),"") ->  | X103: =IF(AND(L103="LOSS",L104<>"LOSS"),SUMIF(L$24:L103,"LOSS",K$24:K103)-SUM(X$23:X102),"") -> -129.8241933
B104: Row 104 (81) | D104: 53 | F104: 12852.59514 | H104: 128.5259514 | K104: 154.2311417 | L104: WIN | M104: =IF(COUNTA($F$6:$F$10)=5,(F105-F24)/F24,"") -> 0.300682628 | N104: 1 | O104: new | W104: =IF(AND(L104="WIN",L105<>"WIN"),SUMIF(L$24:L104,"WIN",K$24:K104)-SUM(W$23:W103),"") ->  | X104: =IF(AND(L104="LOSS",L105<>"LOSS"),SUMIF(L$24:L104,"LOSS",K$24:K104)-SUM(X$23:X103),"") -> 
B105: Row 105 (82) | D105: 21 | F105: 13006.82628 | H105: 130.0682628 | K105: 156.0819154 | L105: WIN | M105: =IF(COUNTA($F$6:$F$10)=5,(F106-F24)/F24,"") -> 0.3162908195 | N105: 2 | O105: last | W105: =IF(AND(L105="WIN",L106<>"WIN"),SUMIF(L$24:L105,"WIN",K$24:K105)-SUM(W$23:W104),"") -> 310.313057 | X105: =IF(AND(L105="LOSS",L106<>"LOSS"),SUMIF(L$24:L105,"LOSS",K$24:K105)-SUM(X$23:X104),"") -> 
B106: Row 106 (83) | D106: 65 | F106: 13162.9082 | H106: 131.629082 | K106: -131.629082 | L106: LOSS | M106: =IF(COUNTA($F$6:$F$10)=5,(F107-F24)/F24,"") -> 0.3031279113 | N106: 1 | O106: last | W106: =IF(AND(L106="WIN",L107<>"WIN"),SUMIF(L$24:L106,"WIN",K$24:K106)-SUM(W$23:W105),"") ->  | X106: =IF(AND(L106="LOSS",L107<>"LOSS"),SUMIF(L$24:L106,"LOSS",K$24:K106)-SUM(X$23:X105),"") -> -131.629082
B107: Row 107 (84) | D107: 36 | F107: 13031.27911 | H107: 130.3127911 | K107: 156.3753494 | L107: WIN | M107: =IF(COUNTA($F$6:$F$10)=5,(F108-F24)/F24,"") -> 0.3187654462 | N107: 1 | O107: last | W107: =IF(AND(L107="WIN",L108<>"WIN"),SUMIF(L$24:L107,"WIN",K$24:K107)-SUM(W$23:W106),"") -> 156.3753494 | X107: =IF(AND(L107="LOSS",L108<>"LOSS"),SUMIF(L$24:L107,"LOSS",K$24:K107)-SUM(X$23:X106),"") -> 
B108: Row 108 (85) | D108: 87 | F108: 13187.65446 | H108: 131.8765446 | K108: -131.8765446 | L108: LOSS | M108: =IF(COUNTA($F$6:$F$10)=5,(F109-F24)/F24,"") -> 0.3055777918 | N108: 1 | O108: last | W108: =IF(AND(L108="WIN",L109<>"WIN"),SUMIF(L$24:L108,"WIN",K$24:K108)-SUM(W$23:W107),"") ->  | X108: =IF(AND(L108="LOSS",L109<>"LOSS"),SUMIF(L$24:L108,"LOSS",K$24:K108)-SUM(X$23:X107),"") -> -131.8765446
B109: Row 109 (86) | D109: 7 | F109: 13055.77792 | H109: 130.5577792 | K109: 156.669335 | L109: WIN | M109: =IF(COUNTA($F$6:$F$10)=5,(F110-F24)/F24,"") -> 0.3212447253 | N109: 1 | O109: new | W109: =IF(AND(L109="WIN",L110<>"WIN"),SUMIF(L$24:L109,"WIN",K$24:K109)-SUM(W$23:W108),"") ->  | X109: =IF(AND(L109="LOSS",L110<>"LOSS"),SUMIF(L$24:L109,"LOSS",K$24:K109)-SUM(X$23:X108),"") -> 
B110: Row 110 (87) | D110: 30 | F110: 13212.44725 | H110: 132.1244725 | K110: 158.549367 | L110: WIN | M110: =IF(COUNTA($F$6:$F$10)=5,(F111-F24)/F24,"") -> 0.337099662 | N110: 2 | O110: last | W110: =IF(AND(L110="WIN",L111<>"WIN"),SUMIF(L$24:L110,"WIN",K$24:K110)-SUM(W$23:W109),"") -> 315.218702 | X110: =IF(AND(L110="LOSS",L111<>"LOSS"),SUMIF(L$24:L110,"LOSS",K$24:K110)-SUM(X$23:X109),"") -> 
B111: Row 111 (88) | D111: 76 | F111: 13370.99662 | H111: 133.7099662 | K111: -133.7099662 | L111: LOSS | M111: =IF(COUNTA($F$6:$F$10)=5,(F112-F24)/F24,"") -> 0.3237286654 | N111: 1 | O111: last | W111: =IF(AND(L111="WIN",L112<>"WIN"),SUMIF(L$24:L111,"WIN",K$24:K111)-SUM(W$23:W110),"") ->  | X111: =IF(AND(L111="LOSS",L112<>"LOSS"),SUMIF(L$24:L111,"LOSS",K$24:K111)-SUM(X$23:X110),"") -> -133.7099662
B112: Row 112 (89) | D112: 37 | F112: 13237.28665 | H112: 132.3728665 | K112: 158.8474398 | L112: WIN | M112: =IF(COUNTA($F$6:$F$10)=5,(F113-F24)/F24,"") -> 0.3396134093 | N112: 1 | O112: last | W112: =IF(AND(L112="WIN",L113<>"WIN"),SUMIF(L$24:L112,"WIN",K$24:K112)-SUM(W$23:W111),"") -> 158.8474398 | X112: =IF(AND(L112="LOSS",L113<>"LOSS"),SUMIF(L$24:L112,"LOSS",K$24:K112)-SUM(X$23:X111),"") -> 
B113: Row 113 (90) | D113: 72 | F113: 13396.13409 | H113: 133.9613409 | K113: -133.9613409 | L113: LOSS | M113: =IF(COUNTA($F$6:$F$10)=5,(F114-F24)/F24,"") -> 0.3262172753 | N113: 1 | O113: last | W113: =IF(AND(L113="WIN",L114<>"WIN"),SUMIF(L$24:L113,"WIN",K$24:K113)-SUM(W$23:W112),"") ->  | X113: =IF(AND(L113="LOSS",L114<>"LOSS"),SUMIF(L$24:L113,"LOSS",K$24:K113)-SUM(X$23:X112),"") -> -133.9613409
B114: Row 114 (91) | D114: 9 | F114: 13262.17275 | H114: 132.6217275 | K114: 159.146073 | L114: WIN | M114: =IF(COUNTA($F$6:$F$10)=5,(F115-F24)/F24,"") -> 0.3421318826 | N114: 1 | O114: last | W114: =IF(AND(L114="WIN",L115<>"WIN"),SUMIF(L$24:L114,"WIN",K$24:K114)-SUM(W$23:W113),"") -> 159.146073 | X114: =IF(AND(L114="LOSS",L115<>"LOSS"),SUMIF(L$24:L114,"LOSS",K$24:K114)-SUM(X$23:X113),"") -> 
B115: Row 115 (92) | D115: 74 | F115: 13421.31883 | H115: 134.2131883 | K115: -134.2131883 | L115: LOSS | M115: =IF(COUNTA($F$6:$F$10)=5,(F116-F24)/F24,"") -> 0.3287105637 | N115: 1 | O115: last | W115: =IF(AND(L115="WIN",L116<>"WIN"),SUMIF(L$24:L115,"WIN",K$24:K115)-SUM(W$23:W114),"") ->  | X115: =IF(AND(L115="LOSS",L116<>"LOSS"),SUMIF(L$24:L115,"LOSS",K$24:K115)-SUM(X$23:X114),"") -> -134.2131883
B116: Row 116 (93) | D116: 35 | F116: 13287.10564 | H116: 132.8710564 | K116: 159.4452676 | L116: WIN | M116: =IF(COUNTA($F$6:$F$10)=5,(F117-F24)/F24,"") -> 0.3446550905 | N116: 1 | O116: new | W116: =IF(AND(L116="WIN",L117<>"WIN"),SUMIF(L$24:L116,"WIN",K$24:K116)-SUM(W$23:W115),"") ->  | X116: =IF(AND(L116="LOSS",L117<>"LOSS"),SUMIF(L$24:L116,"LOSS",K$24:K116)-SUM(X$23:X115),"") -> 
B117: Row 117 (94) | D117: 18 | F117: 13446.5509 | H117: 134.465509 | K117: 161.3586109 | L117: WIN | M117: =IF(COUNTA($F$6:$F$10)=5,(F118-F24)/F24,"") -> 0.3607909516 | N117: 2 | O117: last | W117: =IF(AND(L117="WIN",L118<>"WIN"),SUMIF(L$24:L117,"WIN",K$24:K117)-SUM(W$23:W116),"") -> 320.8038785 | X117: =IF(AND(L117="LOSS",L118<>"LOSS"),SUMIF(L$24:L117,"LOSS",K$24:K117)-SUM(X$23:X116),"") -> 
B118: Row 118 (95) | D118: 61 | F118: 13607.90952 | H118: 136.0790952 | K118: -136.0790952 | L118: LOSS | M118: =IF(COUNTA($F$6:$F$10)=5,(F119-F24)/F24,"") -> 0.3471830421 | N118: 1 | O118: last | W118: =IF(AND(L118="WIN",L119<>"WIN"),SUMIF(L$24:L118,"WIN",K$24:K118)-SUM(W$23:W117),"") ->  | X118: =IF(AND(L118="LOSS",L119<>"LOSS"),SUMIF(L$24:L118,"LOSS",K$24:K118)-SUM(X$23:X117),"") -> -136.0790952
B119: Row 119 (96) | D119: 22 | F119: 13471.83042 | H119: 134.7183042 | K119: 161.661965 | L119: WIN | M119: =IF(COUNTA($F$6:$F$10)=5,(F120-F24)/F24,"") -> 0.3633492386 | N119: 1 | O119: last | W119: =IF(AND(L119="WIN",L120<>"WIN"),SUMIF(L$24:L119,"WIN",K$24:K119)-SUM(W$23:W118),"") -> 161.661965 | X119: =IF(AND(L119="LOSS",L120<>"LOSS"),SUMIF(L$24:L119,"LOSS",K$24:K119)-SUM(X$23:X118),"") -> 
B120: Row 120 (97) | D120: 59 | F120: 13633.49239 | H120: 136.3349239 | K120: -136.3349239 | L120: LOSS | M120: =IF(COUNTA($F$6:$F$10)=5,(F121-F24)/F24,"") -> 0.3497157462 | N120: 1 | O120: new | W120: =IF(AND(L120="WIN",L121<>"WIN"),SUMIF(L$24:L120,"WIN",K$24:K120)-SUM(W$23:W119),"") ->  | X120: =IF(AND(L120="LOSS",L121<>"LOSS"),SUMIF(L$24:L120,"LOSS",K$24:K120)-SUM(X$23:X119),"") -> 
B121: Row 121 (98) | D121: 87 | F121: 13497.15746 | H121: 134.9715746 | K121: -134.9715746 | L121: LOSS | M121: =IF(COUNTA($F$6:$F$10)=5,(F122-F24)/F24,"") -> 0.3362185887 | N121: 2 | O121: middle | W121: =IF(AND(L121="WIN",L122<>"WIN"),SUMIF(L$24:L121,"WIN",K$24:K121)-SUM(W$23:W120),"") ->  | X121: =IF(AND(L121="LOSS",L122<>"LOSS"),SUMIF(L$24:L121,"LOSS",K$24:K121)-SUM(X$23:X120),"") -> 
B122: Row 122 (99) | D122: 79 | F122: 13362.18589 | H122: 133.6218589 | K122: -133.6218589 | L122: LOSS | M122: =IF(COUNTA($F$6:$F$10)=5,(F123-F24)/F24,"") -> 0.3228564028 | N122: 3 | O122: last | W122: =IF(AND(L122="WIN",L123<>"WIN"),SUMIF(L$24:L122,"WIN",K$24:K122)-SUM(W$23:W121),"") ->  | X122: =IF(AND(L122="LOSS",L123<>"LOSS"),SUMIF(L$24:L122,"LOSS",K$24:K122)-SUM(X$23:X121),"") -> -404.9283573
B123: Row 123 (100) | D123: 1 | F123: 13228.56403 | H123: 132.2856403 | K123: 158.7427683 | L123: WIN | M123: =IF(COUNTA($F$6:$F$10)=5,(F124-F24)/F24,"") -> 0.3387306797 | N123: 1 | O123: last | W123: =IF(AND(L123="WIN",L124<>"WIN"),SUMIF(L$24:L123,"WIN",K$24:K123)-SUM(W$23:W122),"") -> 158.7427683 | X123: =IF(AND(L123="LOSS",L124<>"LOSS"),SUMIF(L$24:L123,"LOSS",K$24:K123)-SUM(X$23:X122),"") -> 
B124: Row 124 (101) | D124: 74 | F124: 13387.3068 | H124: 133.873068 | K124: -133.873068 | L124: LOSS | M124: =IF(COUNTA($F$6:$F$10)=5,(F125-F24)/F24,"") -> 0.3253433729 | N124: 1 | O124: last | W124: =IF(AND(L124="WIN",L125<>"WIN"),SUMIF(L$24:L124,"WIN",K$24:K124)-SUM(W$23:W123),"") ->  | X124: =IF(AND(L124="LOSS",L125<>"LOSS"),SUMIF(L$24:L124,"LOSS",K$24:K124)-SUM(X$23:X123),"") -> -133.873068
B125: Row 125 (102) | D125: 32 | F125: 13253.43373 | H125: 132.5343373 | K125: 159.0412047 | L125: WIN | M125: =IF(COUNTA($F$6:$F$10)=5,(F126-F24)/F24,"") -> 0.3412474933 | N125: 1 | O125: new | W125: =IF(AND(L125="WIN",L126<>"WIN"),SUMIF(L$24:L125,"WIN",K$24:K125)-SUM(W$23:W124),"") ->  | X125: =IF(AND(L125="LOSS",L126<>"LOSS"),SUMIF(L$24:L125,"LOSS",K$24:K125)-SUM(X$23:X124),"") -> 
B126: Row 126 (103) | D126: 2 | F126: 13412.47493 | H126: 134.1247493 | K126: 160.9496992 | L126: WIN | M126: =IF(COUNTA($F$6:$F$10)=5,(F127-F24)/F24,"") -> 0.3573424633 | N126: 2 | O126: middle | W126: =IF(AND(L126="WIN",L127<>"WIN"),SUMIF(L$24:L126,"WIN",K$24:K126)-SUM(W$23:W125),"") ->  | X126: =IF(AND(L126="LOSS",L127<>"LOSS"),SUMIF(L$24:L126,"LOSS",K$24:K126)-SUM(X$23:X125),"") -> 
B127: Row 127 (104) | D127: 13 | F127: 13573.42463 | H127: 135.7342463 | K127: 162.8810956 | L127: WIN | M127: =IF(COUNTA($F$6:$F$10)=5,(F128-F24)/F24,"") -> 0.3736305728 | N127: 3 | O127: middle | W127: =IF(AND(L127="WIN",L128<>"WIN"),SUMIF(L$24:L127,"WIN",K$24:K127)-SUM(W$23:W126),"") ->  | X127: =IF(AND(L127="LOSS",L128<>"LOSS"),SUMIF(L$24:L127,"LOSS",K$24:K127)-SUM(X$23:X126),"") -> 
B128: Row 128 (105) | D128: 14 | F128: 13736.30573 | H128: 137.3630573 | K128: 164.8356687 | L128: WIN | M128: =IF(COUNTA($F$6:$F$10)=5,(F129-F24)/F24,"") -> 0.3901141397 | N128: 4 | O128: last | W128: =IF(AND(L128="WIN",L129<>"WIN"),SUMIF(L$24:L128,"WIN",K$24:K128)-SUM(W$23:W127),"") -> 647.7076683 | X128: =IF(AND(L128="LOSS",L129<>"LOSS"),SUMIF(L$24:L128,"LOSS",K$24:K128)-SUM(X$23:X127),"") -> 
B129: Row 129 (106) | D129: 85 | F129: 13901.1414 | H129: 139.011414 | K129: -139.011414 | L129: LOSS | M129: =IF(COUNTA($F$6:$F$10)=5,(F130-F24)/F24,"") -> 0.3762129983 | N129: 1 | O129: new | W129: =IF(AND(L129="WIN",L130<>"WIN"),SUMIF(L$24:L129,"WIN",K$24:K129)-SUM(W$23:W128),"") ->  | X129: =IF(AND(L129="LOSS",L130<>"LOSS"),SUMIF(L$24:L129,"LOSS",K$24:K129)-SUM(X$23:X128),"") -> 
B130: Row 130 (107) | D130: 66 | F130: 13762.12998 | H130: 137.6212998 | K130: -137.6212998 | L130: LOSS | M130: =IF(COUNTA($F$6:$F$10)=5,(F131-F24)/F24,"") -> 0.3624508683 | N130: 2 | O130: middle | W130: =IF(AND(L130="WIN",L131<>"WIN"),SUMIF(L$24:L130,"WIN",K$24:K130)-SUM(W$23:W129),"") ->  | X130: =IF(AND(L130="LOSS",L131<>"LOSS"),SUMIF(L$24:L130,"LOSS",K$24:K130)-SUM(X$23:X129),"") -> 
B131: Row 131 (108) | D131: 71 | F131: 13624.50868 | H131: 136.2450868 | K131: -136.2450868 | L131: LOSS | M131: =IF(COUNTA($F$6:$F$10)=5,(F132-F24)/F24,"") -> 0.3488263596 | N131: 3 | O131: middle | W131: =IF(AND(L131="WIN",L132<>"WIN"),SUMIF(L$24:L131,"WIN",K$24:K131)-SUM(W$23:W130),"") ->  | X131: =IF(AND(L131="LOSS",L132<>"LOSS"),SUMIF(L$24:L131,"LOSS",K$24:K131)-SUM(X$23:X130),"") ->  | Z131: Distribution and Reprint Policy
B132: Row 132 (109) | D132: 99 | F132: 13488.2636 | H132: 134.882636 | K132: -134.882636 | L132: LOSS | M132: =IF(COUNTA($F$6:$F$10)=5,(F133-F24)/F24,"") -> 0.335338096 | N132: 4 | O132: last | W132: =IF(AND(L132="WIN",L133<>"WIN"),SUMIF(L$24:L132,"WIN",K$24:K132)-SUM(W$23:W131),"") ->  | X132: =IF(AND(L132="LOSS",L133<>"LOSS"),SUMIF(L$24:L132,"LOSS",K$24:K132)-SUM(X$23:X131),"") -> -547.7604366 | Z132: This document maybe be republished and distributed under the proviso that it cannot be altered or amended.
B133: Row 133 (110) | D133: 11 | F133: 13353.38096 | H133: 133.5338096 | K133: 160.2405715 | L133: WIN | M133: =IF(COUNTA($F$6:$F$10)=5,(F134-F24)/F24,"") -> 0.3513621532 | N133: 1 | O133: new | W133: =IF(AND(L133="WIN",L134<>"WIN"),SUMIF(L$24:L133,"WIN",K$24:K133)-SUM(W$23:W132),"") ->  | X133: =IF(AND(L133="LOSS",L134<>"LOSS"),SUMIF(L$24:L133,"LOSS",K$24:K133)-SUM(X$23:X132),"") ->  | Z133: DayTradingLife.com Reserve all rights to this effect.
B134: Row 134 (111) | D134: 34 | F134: 13513.62153 | H134: 135.1362153 | K134: 162.1634584 | L134: WIN | M134: =IF(COUNTA($F$6:$F$10)=5,(F135-F24)/F24,"") -> 0.367578499 | N134: 2 | O134: middle | W134: =IF(AND(L134="WIN",L135<>"WIN"),SUMIF(L$24:L134,"WIN",K$24:K134)-SUM(W$23:W133),"") ->  | X134: =IF(AND(L134="LOSS",L135<>"LOSS"),SUMIF(L$24:L134,"LOSS",K$24:K134)-SUM(X$23:X133),"") ->  | AA134: For any futher information please email me at: | AH134: traderdowboy@gmail.com
B135: Row 135 (112) | D135: 24 | F135: 13675.78499 | H135: 136.7578499 | K135: 164.1094199 | L135: WIN | M135: =IF(COUNTA($F$6:$F$10)=5,(F136-F24)/F24,"") -> 0.383989441 | N135: 3 | O135: last | W135: =IF(AND(L135="WIN",L136<>"WIN"),SUMIF(L$24:L135,"WIN",K$24:K135)-SUM(W$23:W134),"") -> 486.5134498 | X135: =IF(AND(L135="LOSS",L136<>"LOSS"),SUMIF(L$24:L135,"LOSS",K$24:K135)-SUM(X$23:X134),"") ->  | Z135: Copyright © 2011-2012 - DayTradingLife.com. - All rights reserved.
B136: Row 136 (113) | D136: 70 | F136: 13839.89441 | H136: 138.3989441 | K136: -138.3989441 | L136: LOSS | M136: =IF(COUNTA($F$6:$F$10)=5,(F137-F24)/F24,"") -> 0.3701495466 | N136: 1 | O136: last | W136: =IF(AND(L136="WIN",L137<>"WIN"),SUMIF(L$24:L136,"WIN",K$24:K136)-SUM(W$23:W135),"") ->  | X136: =IF(AND(L136="LOSS",L137<>"LOSS"),SUMIF(L$24:L136,"LOSS",K$24:K136)-SUM(X$23:X135),"") -> -138.3989441
B137: Row 137 (114) | D137: 21 | F137: 13701.49547 | H137: 137.0149547 | K137: 164.4179456 | L137: WIN | M137: =IF(COUNTA($F$6:$F$10)=5,(F138-F24)/F24,"") -> 0.3865913412 | N137: 1 | O137: last | W137: =IF(AND(L137="WIN",L138<>"WIN"),SUMIF(L$24:L137,"WIN",K$24:K137)-SUM(W$23:W136),"") -> 164.4179456 | X137: =IF(AND(L137="LOSS",L138<>"LOSS"),SUMIF(L$24:L137,"LOSS",K$24:K137)-SUM(X$23:X136),"") -> 
B138: Row 138 (115) | D138: 96 | F138: 13865.91341 | H138: 138.6591341 | K138: -138.6591341 | L138: LOSS | M138: =IF(COUNTA($F$6:$F$10)=5,(F139-F24)/F24,"") -> 0.3727254278 | N138: 1 | O138: new | W138: =IF(AND(L138="WIN",L139<>"WIN"),SUMIF(L$24:L138,"WIN",K$24:K138)-SUM(W$23:W137),"") ->  | X138: =IF(AND(L138="LOSS",L139<>"LOSS"),SUMIF(L$24:L138,"LOSS",K$24:K138)-SUM(X$23:X137),"") -> 
B139: Row 139 (116) | D139: 63 | F139: 13727.25428 | H139: 137.2725428 | K139: -137.2725428 | L139: LOSS | M139: =IF(COUNTA($F$6:$F$10)=5,(F140-F24)/F24,"") -> 0.3589981735 | N139: 2 | O139: last | W139: =IF(AND(L139="WIN",L140<>"WIN"),SUMIF(L$24:L139,"WIN",K$24:K139)-SUM(W$23:W138),"") ->  | X139: =IF(AND(L139="LOSS",L140<>"LOSS"),SUMIF(L$24:L139,"LOSS",K$24:K139)-SUM(X$23:X138),"") -> -275.9316769
B140: Row 140 (117) | D140: 47 | F140: 13589.98173 | H140: 135.8998173 | K140: 163.0797808 | L140: WIN | M140: =IF(COUNTA($F$6:$F$10)=5,(F141-F24)/F24,"") -> 0.3753061516 | N140: 1 | O140: new | W140: =IF(AND(L140="WIN",L141<>"WIN"),SUMIF(L$24:L140,"WIN",K$24:K140)-SUM(W$23:W139),"") ->  | X140: =IF(AND(L140="LOSS",L141<>"LOSS"),SUMIF(L$24:L140,"LOSS",K$24:K140)-SUM(X$23:X139),"") -> 
B141: Row 141 (118) | D141: 39 | F141: 13753.06152 | H141: 137.5306152 | K141: 165.0367382 | L141: WIN | M141: =IF(COUNTA($F$6:$F$10)=5,(F142-F24)/F24,"") -> 0.3918098254 | N141: 2 | O141: middle | W141: =IF(AND(L141="WIN",L142<>"WIN"),SUMIF(L$24:L141,"WIN",K$24:K141)-SUM(W$23:W140),"") ->  | X141: =IF(AND(L141="LOSS",L142<>"LOSS"),SUMIF(L$24:L141,"LOSS",K$24:K141)-SUM(X$23:X140),"") -> 
B142: Row 142 (119) | D142: 46 | F142: 13918.09825 | H142: 139.1809825 | K142: 167.017179 | L142: WIN | M142: =IF(COUNTA($F$6:$F$10)=5,(F143-F24)/F24,"") -> 0.4085115433 | N142: 3 | O142: last | W142: =IF(AND(L142="WIN",L143<>"WIN"),SUMIF(L$24:L142,"WIN",K$24:K142)-SUM(W$23:W141),"") -> 495.1336981 | X142: =IF(AND(L142="LOSS",L143<>"LOSS"),SUMIF(L$24:L142,"LOSS",K$24:K142)-SUM(X$23:X141),"") -> 
B143: Row 143 (120) | D143: 74 | F143: 14085.11543 | H143: 140.8511543 | K143: -140.8511543 | L143: LOSS | M143: =IF(COUNTA($F$6:$F$10)=5,(F144-F24)/F24,"") -> 0.3944264279 | N143: 1 | O143: last | W143: =IF(AND(L143="WIN",L144<>"WIN"),SUMIF(L$24:L143,"WIN",K$24:K143)-SUM(W$23:W142),"") ->  | X143: =IF(AND(L143="LOSS",L144<>"LOSS"),SUMIF(L$24:L143,"LOSS",K$24:K143)-SUM(X$23:X142),"") -> -140.8511543
B144: Row 144 (121) | D144: 25 | F144: 13944.26428 | H144: 139.4426428 | K144: 167.3311713 | L144: WIN | M144: =IF(COUNTA($F$6:$F$10)=5,(F145-F24)/F24,"") -> 0.411159545 | N144: 1 | O144: new | W144: =IF(AND(L144="WIN",L145<>"WIN"),SUMIF(L$24:L144,"WIN",K$24:K144)-SUM(W$23:W143),"") ->  | X144: =IF(AND(L144="LOSS",L145<>"LOSS"),SUMIF(L$24:L144,"LOSS",K$24:K144)-SUM(X$23:X143),"") -> 
B145: Row 145 (122) | D145: 9 | F145: 14111.59545 | H145: 141.1159545 | K145: 169.3391454 | L145: WIN | M145: =IF(COUNTA($F$6:$F$10)=5,(F146-F24)/F24,"") -> 0.4280934595 | N145: 2 | O145: middle | W145: =IF(AND(L145="WIN",L146<>"WIN"),SUMIF(L$24:L145,"WIN",K$24:K145)-SUM(W$23:W144),"") ->  | X145: =IF(AND(L145="LOSS",L146<>"LOSS"),SUMIF(L$24:L145,"LOSS",K$24:K145)-SUM(X$23:X144),"") -> 
B146: Row 146 (123) | D146: 8 | F146: 14280.9346 | H146: 142.809346 | K146: 171.3712151 | L146: WIN | M146: =IF(COUNTA($F$6:$F$10)=5,(F147-F24)/F24,"") -> 0.445230581 | N146: 3 | O146: last | W146: =IF(AND(L146="WIN",L147<>"WIN"),SUMIF(L$24:L146,"WIN",K$24:K146)-SUM(W$23:W145),"") -> 508.0415319 | X146: =IF(AND(L146="LOSS",L147<>"LOSS"),SUMIF(L$24:L146,"LOSS",K$24:K146)-SUM(X$23:X145),"") -> 
B147: Row 147 (124) | D147: 79 | F147: 14452.30581 | H147: 144.5230581 | K147: -144.5230581 | L147: LOSS | M147: =IF(COUNTA($F$6:$F$10)=5,(F148-F24)/F24,"") -> 0.4307782752 | N147: 1 | O147: new | W147: =IF(AND(L147="WIN",L148<>"WIN"),SUMIF(L$24:L147,"WIN",K$24:K147)-SUM(W$23:W146),"") ->  | X147: =IF(AND(L147="LOSS",L148<>"LOSS"),SUMIF(L$24:L147,"LOSS",K$24:K147)-SUM(X$23:X146),"") -> 
B148: Row 148 (125) | D148: 69 | F148: 14307.78275 | H148: 143.0778275 | K148: -143.0778275 | L148: LOSS | M148: =IF(COUNTA($F$6:$F$10)=5,(F149-F24)/F24,"") -> 0.4164704925 | N148: 2 | O148: last | W148: =IF(AND(L148="WIN",L149<>"WIN"),SUMIF(L$24:L148,"WIN",K$24:K148)-SUM(W$23:W147),"") ->  | X148: =IF(AND(L148="LOSS",L149<>"LOSS"),SUMIF(L$24:L148,"LOSS",K$24:K148)-SUM(X$23:X147),"") -> -287.6008856
B149: Row 149 (126) | D149: 53 | F149: 14164.70492 | H149: 141.6470492 | K149: 169.9764591 | L149: WIN | M149: =IF(COUNTA($F$6:$F$10)=5,(F150-F24)/F24,"") -> 0.4334681384 | N149: 1 | O149: last | W149: =IF(AND(L149="WIN",L150<>"WIN"),SUMIF(L$24:L149,"WIN",K$24:K149)-SUM(W$23:W148),"") -> 169.9764591 | X149: =IF(AND(L149="LOSS",L150<>"LOSS"),SUMIF(L$24:L149,"LOSS",K$24:K149)-SUM(X$23:X148),"") -> 
B150: Row 150 (127) | D150: 95 | F150: 14334.68138 | H150: 143.3468138 | K150: -143.3468138 | L150: LOSS | M150: =IF(COUNTA($F$6:$F$10)=5,(F151-F24)/F24,"") -> 0.419133457 | N150: 1 | O150: last | W150: =IF(AND(L150="WIN",L151<>"WIN"),SUMIF(L$24:L150,"WIN",K$24:K150)-SUM(W$23:W149),"") ->  | X150: =IF(AND(L150="LOSS",L151<>"LOSS"),SUMIF(L$24:L150,"LOSS",K$24:K150)-SUM(X$23:X149),"") -> -143.3468138
B151: Row 151 (128) | D151: 31 | F151: 14191.33457 | H151: 141.9133457 | K151: 170.2960148 | L151: WIN | M151: =IF(COUNTA($F$6:$F$10)=5,(F152-F24)/F24,"") -> 0.4361630585 | N151: 1 | O151: last | W151: =IF(AND(L151="WIN",L152<>"WIN"),SUMIF(L$24:L151,"WIN",K$24:K151)-SUM(W$23:W150),"") -> 170.2960148 | X151: =IF(AND(L151="LOSS",L152<>"LOSS"),SUMIF(L$24:L151,"LOSS",K$24:K151)-SUM(X$23:X150),"") -> 
B152: Row 152 (129) | D152: 92 | F152: 14361.63058 | H152: 143.6163058 | K152: -143.6163058 | L152: LOSS | M152: =IF(COUNTA($F$6:$F$10)=5,(F153-F24)/F24,"") -> 0.4218014279 | N152: 1 | O152: new | W152: =IF(AND(L152="WIN",L153<>"WIN"),SUMIF(L$24:L152,"WIN",K$24:K152)-SUM(W$23:W151),"") ->  | X152: =IF(AND(L152="LOSS",L153<>"LOSS"),SUMIF(L$24:L152,"LOSS",K$24:K152)-SUM(X$23:X151),"") -> 
B153: Row 153 (130) | D153: 66 | F153: 14218.01428 | H153: =IF(COUNTBLANK($F$6:$F$10),"",F153*$F$7) -> 142.1801428 | K153: -142.1801428 | L153: =IF(D153="","",IF(D153<$F$8,"WIN","LOSS")) -> LOSS | M153: =IF(COUNTA($F$6:$F$10)=5,(F154-F24)/F24,"") -> 0.4075834136 | N153: =IF(L153=L152,N152+1,1) -> 2 | O153: =IF(N153=1,IF(N154=1,"last","new"),IF(N154=1,"last","middle")) -> middle | W153: =IF(AND(L153="WIN",L154<>"WIN"),SUMIF(L$24:L153,"WIN",K$24:K153)-SUM(W$23:W152),"") ->  | X153: =IF(AND(L153="LOSS",L154<>"LOSS"),SUMIF(L$24:L153,"LOSS",K$24:K153)-SUM(X$23:X152),"") -> 
B154: Row 154 (131) | D154: 89 | F154: =IF(COUNTBLANK($F$6:$F$10),"",IF(D153<$F$8,(1+$F$7*$F$9)*F153-$F$10,(1-$F$7)*F153-$F$10)) -> 14075.83414 | H154: 140.7583414 | K154: =IF(COUNTBLANK($F$6:$F$10),"", IF(L154="win", H154*$F$9-$F$10, IF(L154="loss", -H154-$F$10))) -> -140.7583414 | L154: LOSS | M154: =IF(COUNTA($F$6:$F$10)=5,(F155-F24)/F24,"") -> 0.3935075795 | N154: 3 | O154: last | W154: =IF(AND(L154="WIN",L155<>"WIN"),SUMIF(L$24:L154,"WIN",K$24:K154)-SUM(W$23:W153),"") ->  | X154: =IF(AND(L154="LOSS",L155<>"LOSS"),SUMIF(L$24:L154,"LOSS",K$24:K154)-SUM(X$23:X153),"") -> -426.55479
B155: Row 155 (132) | D155: 24 | F155: 13935.07579 | H155: 139.3507579 | K155: 167.2209095 | L155: WIN | M155: =IF(COUNTA($F$6:$F$10)=5,(F156-F24)/F24,"") -> 0.4102296704 | N155: 1 | O155: last | W155: =IF(AND(L155="WIN",L156<>"WIN"),SUMIF(L$24:L155,"WIN",K$24:K155)-SUM(W$23:W154),"") -> 167.2209095 | X155: =IF(AND(L155="LOSS",L156<>"LOSS"),SUMIF(L$24:L155,"LOSS",K$24:K155)-SUM(X$23:X154),"") -> 
B156: Row 156 (133) | D156: 55 | F156: 14102.2967 | H156: 141.022967 | K156: -141.022967 | L156: LOSS | M156: =IF(COUNTA($F$6:$F$10)=5,(F157-F24)/F24,"") -> 0.3961273737 | N156: 1 | O156: new | W156: =IF(AND(L156="WIN",L157<>"WIN"),SUMIF(L$24:L156,"WIN",K$24:K156)-SUM(W$23:W155),"") ->  | X156: =IF(AND(L156="LOSS",L157<>"LOSS"),SUMIF(L$24:L156,"LOSS",K$24:K156)-SUM(X$23:X155),"") -> 
B157: Row 157 (134) | D157: 79 | F157: 13961.27374 | H157: 139.6127374 | K157: -139.6127374 | L157: LOSS | M157: =IF(COUNTA($F$6:$F$10)=5,(F158-F24)/F24,"") -> 0.3821661 | N157: 2 | O157: last | W157: =IF(AND(L157="WIN",L158<>"WIN"),SUMIF(L$24:L157,"WIN",K$24:K157)-SUM(W$23:W156),"") ->  | X157: =IF(AND(L157="LOSS",L158<>"LOSS"),SUMIF(L$24:L157,"LOSS",K$24:K157)-SUM(X$23:X156),"") -> -280.6357044
B158: Row 158 (135) | D158: 17 | F158: 13821.661 | H158: 138.21661 | K158: 165.859932 | L158: WIN | M158: =IF(COUNTA($F$6:$F$10)=5,(F159-F24)/F24,"") -> 0.3987520932 | N158: 1 | O158: new | W158: =IF(AND(L158="WIN",L159<>"WIN"),SUMIF(L$24:L158,"WIN",K$24:K158)-SUM(W$23:W157),"") ->  | X158: =IF(AND(L158="LOSS",L159<>"LOSS"),SUMIF(L$24:L158,"LOSS",K$24:K158)-SUM(X$23:X157),"") -> 
B159: Row 159 (136) | D159: 30 | F159: 13987.52093 | H159: 139.8752093 | K159: 167.8502512 | L159: WIN | M159: =IF(COUNTA($F$6:$F$10)=5,(F160-F24)/F24,"") -> 0.4155371183 | N159: 2 | O159: last | W159: =IF(AND(L159="WIN",L160<>"WIN"),SUMIF(L$24:L159,"WIN",K$24:K159)-SUM(W$23:W158),"") -> 333.7101832 | X159: =IF(AND(L159="LOSS",L160<>"LOSS"),SUMIF(L$24:L159,"LOSS",K$24:K159)-SUM(X$23:X158),"") -> 
B160: Row 160 (137) | D160: 83 | F160: 14155.37118 | H160: 141.5537118 | K160: -141.5537118 | L160: LOSS | M160: =IF(COUNTA($F$6:$F$10)=5,(F161-F24)/F24,"") -> 0.4013817471 | N160: 1 | O160: last | W160: =IF(AND(L160="WIN",L161<>"WIN"),SUMIF(L$24:L160,"WIN",K$24:K160)-SUM(W$23:W159),"") ->  | X160: =IF(AND(L160="LOSS",L161<>"LOSS"),SUMIF(L$24:L160,"LOSS",K$24:K160)-SUM(X$23:X159),"") -> -141.5537118
B161: Row 161 (138) | D161: 35 | F161: 14013.81747 | H161: 140.1381747 | K161: 168.1658097 | L161: WIN | M161: =IF(COUNTA($F$6:$F$10)=5,(F162-F24)/F24,"") -> 0.4181983281 | N161: 1 | O161: last | W161: =IF(AND(L161="WIN",L162<>"WIN"),SUMIF(L$24:L161,"WIN",K$24:K161)-SUM(W$23:W160),"") -> 168.1658097 | X161: =IF(AND(L161="LOSS",L162<>"LOSS"),SUMIF(L$24:L161,"LOSS",K$24:K161)-SUM(X$23:X160),"") -> 
B162: Row 162 (139) | D162: 87 | F162: 14181.98328 | H162: 141.8198328 | K162: -141.8198328 | L162: LOSS | M162: =IF(COUNTA($F$6:$F$10)=5,(F163-F24)/F24,"") -> 0.4040163448 | N162: 1 | O162: new | W162: =IF(AND(L162="WIN",L163<>"WIN"),SUMIF(L$24:L162,"WIN",K$24:K162)-SUM(W$23:W161),"") ->  | X162: =IF(AND(L162="LOSS",L163<>"LOSS"),SUMIF(L$24:L162,"LOSS",K$24:K162)-SUM(X$23:X161),"") -> 
B163: Row 163 (140) | D163: 87 | F163: 14040.16345 | H163: 140.4016345 | K163: -140.4016345 | L163: LOSS | M163: =IF(COUNTA($F$6:$F$10)=5,(F164-F24)/F24,"") -> 0.3899761814 | N163: 2 | O163: middle | W163: =IF(AND(L163="WIN",L164<>"WIN"),SUMIF(L$24:L163,"WIN",K$24:K163)-SUM(W$23:W162),"") ->  | X163: =IF(AND(L163="LOSS",L164<>"LOSS"),SUMIF(L$24:L163,"LOSS",K$24:K163)-SUM(X$23:X162),"") -> 
B164: Row 164 (141) | D164: 61 | F164: 13899.76181 | H164: 138.9976181 | K164: -138.9976181 | L164: LOSS | M164: =IF(COUNTA($F$6:$F$10)=5,(F165-F24)/F24,"") -> 0.3760764196 | N164: 3 | O164: middle | W164: =IF(AND(L164="WIN",L165<>"WIN"),SUMIF(L$24:L164,"WIN",K$24:K164)-SUM(W$23:W163),"") ->  | X164: =IF(AND(L164="LOSS",L165<>"LOSS"),SUMIF(L$24:L164,"LOSS",K$24:K164)-SUM(X$23:X163),"") -> 
B165: Row 165 (142) | D165: 93 | F165: 13760.7642 | H165: 137.607642 | K165: -137.607642 | L165: LOSS | M165: =IF(COUNTA($F$6:$F$10)=5,(F166-F24)/F24,"") -> 0.3623156554 | N165: 4 | O165: last | W165: =IF(AND(L165="WIN",L166<>"WIN"),SUMIF(L$24:L165,"WIN",K$24:K165)-SUM(W$23:W164),"") ->  | X165: =IF(AND(L165="LOSS",L166<>"LOSS"),SUMIF(L$24:L165,"LOSS",K$24:K165)-SUM(X$23:X164),"") -> -558.8267274
B166: Row 166 (143) | D166: 46 | F166: 13623.15655 | H166: 136.2315655 | K166: 163.4778786 | L166: WIN | M166: =IF(COUNTA($F$6:$F$10)=5,(F167-F24)/F24,"") -> 0.3786634432 | N166: 1 | O166: new | W166: =IF(AND(L166="WIN",L167<>"WIN"),SUMIF(L$24:L166,"WIN",K$24:K166)-SUM(W$23:W165),"") ->  | X166: =IF(AND(L166="LOSS",L167<>"LOSS"),SUMIF(L$24:L166,"LOSS",K$24:K166)-SUM(X$23:X165),"") -> 
B167: Row 167 (144) | D167: 9 | F167: 13786.63443 | H167: 137.8663443 | K167: 165.4396132 | L167: WIN | M167: =IF(COUNTA($F$6:$F$10)=5,(F168-F24)/F24,"") -> 0.3952074045 | N167: 2 | O167: middle | W167: =IF(AND(L167="WIN",L168<>"WIN"),SUMIF(L$24:L167,"WIN",K$24:K167)-SUM(W$23:W166),"") ->  | X167: =IF(AND(L167="LOSS",L168<>"LOSS"),SUMIF(L$24:L167,"LOSS",K$24:K167)-SUM(X$23:X166),"") -> 
B168: Row 168 (145) | D168: 4 | F168: 13952.07405 | H168: 139.5207405 | K168: 167.4248885 | L168: WIN | M168: =IF(COUNTA($F$6:$F$10)=5,(F169-F24)/F24,"") -> 0.4119498934 | N168: 3 | O168: middle | W168: =IF(AND(L168="WIN",L169<>"WIN"),SUMIF(L$24:L168,"WIN",K$24:K168)-SUM(W$23:W167),"") ->  | X168: =IF(AND(L168="LOSS",L169<>"LOSS"),SUMIF(L$24:L168,"LOSS",K$24:K168)-SUM(X$23:X167),"") -> 
B169: Row 169 (146) | D169: 32 | F169: 14119.49893 | H169: 141.1949893 | K169: 169.4339872 | L169: WIN | M169: =IF(COUNTA($F$6:$F$10)=5,(F170-F24)/F24,"") -> 0.4288932921 | N169: 4 | O169: last | W169: =IF(AND(L169="WIN",L170<>"WIN"),SUMIF(L$24:L169,"WIN",K$24:K169)-SUM(W$23:W168),"") -> 665.7763676 | X169: =IF(AND(L169="LOSS",L170<>"LOSS"),SUMIF(L$24:L169,"LOSS",K$24:K169)-SUM(X$23:X168),"") -> 
B170: Row 170 (147) | D170: 84 | F170: 14288.93292 | H170: 142.8893292 | K170: -142.8893292 | L170: LOSS | M170: =IF(COUNTA($F$6:$F$10)=5,(F171-F24)/F24,"") -> 0.4146043592 | N170: 1 | O170: new | W170: =IF(AND(L170="WIN",L171<>"WIN"),SUMIF(L$24:L170,"WIN",K$24:K170)-SUM(W$23:W169),"") ->  | X170: =IF(AND(L170="LOSS",L171<>"LOSS"),SUMIF(L$24:L170,"LOSS",K$24:K170)-SUM(X$23:X169),"") -> 
B171: Row 171 (148) | D171: 100 | F171: 14146.04359 | H171: 141.4604359 | K171: -141.4604359 | L171: LOSS | M171: =IF(COUNTA($F$6:$F$10)=5,(F172-F24)/F24,"") -> 0.4004583156 | N171: 2 | O171: middle | W171: =IF(AND(L171="WIN",L172<>"WIN"),SUMIF(L$24:L171,"WIN",K$24:K171)-SUM(W$23:W170),"") ->  | X171: =IF(AND(L171="LOSS",L172<>"LOSS"),SUMIF(L$24:L171,"LOSS",K$24:K171)-SUM(X$23:X170),"") -> 
B172: Row 172 (149) | D172: 98 | F172: 14004.58316 | H172: 140.0458316 | K172: -140.0458316 | L172: LOSS | M172: =IF(COUNTA($F$6:$F$10)=5,(F173-F24)/F24,"") -> 0.3864537325 | N172: 3 | O172: last | W172: =IF(AND(L172="WIN",L173<>"WIN"),SUMIF(L$24:L172,"WIN",K$24:K172)-SUM(W$23:W171),"") ->  | X172: =IF(AND(L172="LOSS",L173<>"LOSS"),SUMIF(L$24:L172,"LOSS",K$24:K172)-SUM(X$23:X171),"") -> -424.3955967
B173: Row 173 (150) | D173: 3 | F173: 13864.53732 | H173: 138.6453732 | K173: 166.3744479 | L173: WIN | M173: =IF(COUNTA($F$6:$F$10)=5,(F174-F24)/F24,"") -> 0.4030911772 | N173: 1 | O173: last | W173: =IF(AND(L173="WIN",L174<>"WIN"),SUMIF(L$24:L173,"WIN",K$24:K173)-SUM(W$23:W172),"") -> 166.3744479 | X173: =IF(AND(L173="LOSS",L174<>"LOSS"),SUMIF(L$24:L173,"LOSS",K$24:K173)-SUM(X$23:X172),"") -> 
B174: Row 174 (151) | D174: 82 | F174: 14030.91177 | H174: 140.3091177 | K174: -140.3091177 | L174: LOSS | M174: =IF(COUNTA($F$6:$F$10)=5,(F175-F24)/F24,"") -> 0.3890602655 | N174: 1 | O174: last | W174: =IF(AND(L174="WIN",L175<>"WIN"),SUMIF(L$24:L174,"WIN",K$24:K174)-SUM(W$23:W173),"") ->  | X174: =IF(AND(L174="LOSS",L175<>"LOSS"),SUMIF(L$24:L174,"LOSS",K$24:K174)-SUM(X$23:X173),"") -> -140.3091177
B175: Row 175 (152) | D175: 47 | F175: 13890.60265 | H175: 138.9060265 | K175: 166.6872319 | L175: WIN | M175: =IF(COUNTA($F$6:$F$10)=5,(F176-F24)/F24,"") -> 0.4057289887 | N175: 1 | O175: last | W175: =IF(AND(L175="WIN",L176<>"WIN"),SUMIF(L$24:L175,"WIN",K$24:K175)-SUM(W$23:W174),"") -> 166.6872319 | X175: =IF(AND(L175="LOSS",L176<>"LOSS"),SUMIF(L$24:L175,"LOSS",K$24:K175)-SUM(X$23:X174),"") -> 
B176: Row 176 (153) | D176: 91 | F176: 14057.28989 | H176: 140.5728989 | K176: -140.5728989 | L176: LOSS | M176: =IF(COUNTA($F$6:$F$10)=5,(F177-F24)/F24,"") -> 0.3916716988 | N176: 1 | O176: new | W176: =IF(AND(L176="WIN",L177<>"WIN"),SUMIF(L$24:L176,"WIN",K$24:K176)-SUM(W$23:W175),"") ->  | X176: =IF(AND(L176="LOSS",L177<>"LOSS"),SUMIF(L$24:L176,"LOSS",K$24:K176)-SUM(X$23:X175),"") -> 
B177: Row 177 (154) | D177: 75 | F177: 13916.71699 | H177: 139.1671699 | K177: -139.1671699 | L177: LOSS | M177: =IF(COUNTA($F$6:$F$10)=5,(F178-F24)/F24,"") -> 0.3777549818 | N177: 2 | O177: middle | W177: =IF(AND(L177="WIN",L178<>"WIN"),SUMIF(L$24:L177,"WIN",K$24:K177)-SUM(W$23:W176),"") ->  | X177: =IF(AND(L177="LOSS",L178<>"LOSS"),SUMIF(L$24:L177,"LOSS",K$24:K177)-SUM(X$23:X176),"") -> 
B178: Row 178 (155) | D178: 99 | F178: 13777.54982 | H178: 137.7754982 | K178: -137.7754982 | L178: LOSS | M178: =IF(COUNTA($F$6:$F$10)=5,(F179-F24)/F24,"") -> 0.363977432 | N178: 3 | O178: middle | W178: =IF(AND(L178="WIN",L179<>"WIN"),SUMIF(L$24:L178,"WIN",K$24:K178)-SUM(W$23:W177),"") ->  | X178: =IF(AND(L178="LOSS",L179<>"LOSS"),SUMIF(L$24:L178,"LOSS",K$24:K178)-SUM(X$23:X177),"") -> 
B179: Row 179 (156) | D179: 57 | F179: 13639.77432 | H179: 136.3977432 | K179: -136.3977432 | L179: LOSS | M179: =IF(COUNTA($F$6:$F$10)=5,(F180-F24)/F24,"") -> 0.3503376576 | N179: 4 | O179: last | W179: =IF(AND(L179="WIN",L180<>"WIN"),SUMIF(L$24:L179,"WIN",K$24:K179)-SUM(W$23:W178),"") ->  | X179: =IF(AND(L179="LOSS",L180<>"LOSS"),SUMIF(L$24:L179,"LOSS",K$24:K179)-SUM(X$23:X178),"") -> -553.9133101
B180: Row 180 (157) | D180: 34 | F180: 13503.37658 | H180: 135.0337658 | K180: 162.0405189 | L180: WIN | M180: =IF(COUNTA($F$6:$F$10)=5,(F181-F24)/F24,"") -> 0.3665417095 | N180: 1 | O180: new | W180: =IF(AND(L180="WIN",L181<>"WIN"),SUMIF(L$24:L180,"WIN",K$24:K180)-SUM(W$23:W179),"") ->  | X180: =IF(AND(L180="LOSS",L181<>"LOSS"),SUMIF(L$24:L180,"LOSS",K$24:K180)-SUM(X$23:X179),"") -> 
B181: Row 181 (158) | D181: 14 | F181: 13665.4171 | H181: 136.654171 | K181: 163.9850051 | L181: WIN | M181: =IF(COUNTA($F$6:$F$10)=5,(F182-F24)/F24,"") -> 0.3829402101 | N181: 2 | O181: last | W181: =IF(AND(L181="WIN",L182<>"WIN"),SUMIF(L$24:L181,"WIN",K$24:K181)-SUM(W$23:W180),"") -> 326.0255241 | X181: =IF(AND(L181="LOSS",L182<>"LOSS"),SUMIF(L$24:L181,"LOSS",K$24:K181)-SUM(X$23:X180),"") -> 
B182: Row 182 (159) | D182: 78 | F182: 13829.4021 | H182: 138.294021 | K182: -138.294021 | L182: LOSS | M182: =IF(COUNTA($F$6:$F$10)=5,(F183-F24)/F24,"") -> 0.3691108079 | N182: 1 | O182: last | W182: =IF(AND(L182="WIN",L183<>"WIN"),SUMIF(L$24:L182,"WIN",K$24:K182)-SUM(W$23:W181),"") ->  | X182: =IF(AND(L182="LOSS",L183<>"LOSS"),SUMIF(L$24:L182,"LOSS",K$24:K182)-SUM(X$23:X181),"") -> -138.294021
B183: Row 183 (160) | D183: 20 | F183: 13691.10808 | H183: 136.9110808 | K183: 164.293297 | L183: WIN | M183: =IF(COUNTA($F$6:$F$10)=5,(F184-F24)/F24,"") -> 0.3855401376 | N183: 1 | O183: new | W183: =IF(AND(L183="WIN",L184<>"WIN"),SUMIF(L$24:L183,"WIN",K$24:K183)-SUM(W$23:W182),"") ->  | X183: =IF(AND(L183="LOSS",L184<>"LOSS"),SUMIF(L$24:L183,"LOSS",K$24:K183)-SUM(X$23:X182),"") -> 
B184: Row 184 (161) | D184: 9 | F184: 13855.40138 | H184: 138.5540138 | K184: 166.2648165 | L184: WIN | M184: =IF(COUNTA($F$6:$F$10)=5,(F185-F24)/F24,"") -> 0.4021666193 | N184: 2 | O184: middle | W184: =IF(AND(L184="WIN",L185<>"WIN"),SUMIF(L$24:L184,"WIN",K$24:K184)-SUM(W$23:W183),"") ->  | X184: =IF(AND(L184="LOSS",L185<>"LOSS"),SUMIF(L$24:L184,"LOSS",K$24:K184)-SUM(X$23:X183),"") -> 
B185: Row 185 (162) | D185: 13 | F185: 14021.66619 | H185: 140.2166619 | K185: 168.2599943 | L185: WIN | M185: =IF(COUNTA($F$6:$F$10)=5,(F186-F24)/F24,"") -> 0.4189926187 | N185: 3 | O185: last | W185: =IF(AND(L185="WIN",L186<>"WIN"),SUMIF(L$24:L185,"WIN",K$24:K185)-SUM(W$23:W184),"") -> 498.8181078 | X185: =IF(AND(L185="LOSS",L186<>"LOSS"),SUMIF(L$24:L185,"LOSS",K$24:K185)-SUM(X$23:X184),"") -> 
B186: Row 186 (163) | D186: 76 | F186: 14189.92619 | H186: 141.8992619 | K186: -141.8992619 | L186: LOSS | M186: =IF(COUNTA($F$6:$F$10)=5,(F187-F24)/F24,"") -> 0.4048026925 | N186: 1 | O186: last | W186: =IF(AND(L186="WIN",L187<>"WIN"),SUMIF(L$24:L186,"WIN",K$24:K186)-SUM(W$23:W185),"") ->  | X186: =IF(AND(L186="LOSS",L187<>"LOSS"),SUMIF(L$24:L186,"LOSS",K$24:K186)-SUM(X$23:X185),"") -> -141.8992619
B187: Row 187 (164) | D187: 31 | F187: 14048.02693 | H187: 140.4802693 | K187: 168.5763231 | L187: WIN | M187: =IF(COUNTA($F$6:$F$10)=5,(F188-F24)/F24,"") -> 0.4216603249 | N187: 1 | O187: new | W187: =IF(AND(L187="WIN",L188<>"WIN"),SUMIF(L$24:L187,"WIN",K$24:K187)-SUM(W$23:W186),"") ->  | X187: =IF(AND(L187="LOSS",L188<>"LOSS"),SUMIF(L$24:L187,"LOSS",K$24:K187)-SUM(X$23:X186),"") -> 
B188: Row 188 (165) | D188: 54 | F188: 14216.60325 | H188: 142.1660325 | K188: 170.599239 | L188: WIN | M188: =IF(COUNTA($F$6:$F$10)=5,(F189-F24)/F24,"") -> 0.4387202487 | N188: 2 | O188: middle | W188: =IF(AND(L188="WIN",L189<>"WIN"),SUMIF(L$24:L188,"WIN",K$24:K188)-SUM(W$23:W187),"") ->  | X188: =IF(AND(L188="LOSS",L189<>"LOSS"),SUMIF(L$24:L188,"LOSS",K$24:K188)-SUM(X$23:X187),"") -> 
B189: Row 189 (166) | D189: 48 | F189: 14387.20249 | H189: 143.8720249 | K189: 172.6464298 | L189: WIN | M189: =IF(COUNTA($F$6:$F$10)=5,(F190-F24)/F24,"") -> 0.4559848917 | N189: 3 | O189: last | W189: =IF(AND(L189="WIN",L190<>"WIN"),SUMIF(L$24:L189,"WIN",K$24:K189)-SUM(W$23:W188),"") -> 511.8219919 | X189: =IF(AND(L189="LOSS",L190<>"LOSS"),SUMIF(L$24:L189,"LOSS",K$24:K189)-SUM(X$23:X188),"") -> 
B190: Row 190 (167) | D190: 96 | F190: 14559.84892 | H190: 145.5984892 | K190: -145.5984892 | L190: LOSS | M190: =IF(COUNTA($F$6:$F$10)=5,(F191-F24)/F24,"") -> 0.4414250428 | N190: 1 | O190: last | W190: =IF(AND(L190="WIN",L191<>"WIN"),SUMIF(L$24:L190,"WIN",K$24:K190)-SUM(W$23:W189),"") ->  | X190: =IF(AND(L190="LOSS",L191<>"LOSS"),SUMIF(L$24:L190,"LOSS",K$24:K190)-SUM(X$23:X189),"") -> -145.5984892
B191: Row 191 (168) | D191: 48 | F191: 14414.25043 | H191: 144.1425043 | K191: 172.9710051 | L191: WIN | M191: =IF(COUNTA($F$6:$F$10)=5,(F192-F24)/F24,"") -> 0.4587221433 | N191: 1 | O191: last | W191: =IF(AND(L191="WIN",L192<>"WIN"),SUMIF(L$24:L191,"WIN",K$24:K191)-SUM(W$23:W190),"") -> 172.9710051 | X191: =IF(AND(L191="LOSS",L192<>"LOSS"),SUMIF(L$24:L191,"LOSS",K$24:K191)-SUM(X$23:X190),"") -> 
B192: Row 192 (169) | D192: 74 | F192: 14587.22143 | H192: 145.8722143 | K192: -145.8722143 | L192: LOSS | M192: =IF(COUNTA($F$6:$F$10)=5,(F193-F24)/F24,"") -> 0.4441349219 | N192: 1 | O192: new | W192: =IF(AND(L192="WIN",L193<>"WIN"),SUMIF(L$24:L192,"WIN",K$24:K192)-SUM(W$23:W191),"") ->  | X192: =IF(AND(L192="LOSS",L193<>"LOSS"),SUMIF(L$24:L192,"LOSS",K$24:K192)-SUM(X$23:X191),"") -> 
B193: Row 193 (170) | D193: 57 | F193: 14441.34922 | H193: 144.4134922 | K193: -144.4134922 | L193: LOSS | M193: =IF(COUNTA($F$6:$F$10)=5,(F194-F24)/F24,"") -> 0.4296935727 | N193: 2 | O193: middle | W193: =IF(AND(L193="WIN",L194<>"WIN"),SUMIF(L$24:L193,"WIN",K$24:K193)-SUM(W$23:W192),"") ->  | X193: =IF(AND(L193="LOSS",L194<>"LOSS"),SUMIF(L$24:L193,"LOSS",K$24:K193)-SUM(X$23:X192),"") -> 
B194: Row 194 (171) | D194: 95 | F194: 14296.93573 | H194: 142.9693573 | K194: -142.9693573 | L194: LOSS | M194: =IF(COUNTA($F$6:$F$10)=5,(F195-F24)/F24,"") -> 0.415396637 | N194: 3 | O194: middle | W194: =IF(AND(L194="WIN",L195<>"WIN"),SUMIF(L$24:L194,"WIN",K$24:K194)-SUM(W$23:W193),"") ->  | X194: =IF(AND(L194="LOSS",L195<>"LOSS"),SUMIF(L$24:L194,"LOSS",K$24:K194)-SUM(X$23:X193),"") -> 
B195: Row 195 (172) | D195: 92 | F195: 14153.96637 | H195: 141.5396637 | K195: -141.5396637 | L195: LOSS | M195: =IF(COUNTA($F$6:$F$10)=5,(F196-F24)/F24,"") -> 0.4012426706 | N195: 4 | O195: middle | W195: =IF(AND(L195="WIN",L196<>"WIN"),SUMIF(L$24:L195,"WIN",K$24:K195)-SUM(W$23:W194),"") ->  | X195: =IF(AND(L195="LOSS",L196<>"LOSS"),SUMIF(L$24:L195,"LOSS",K$24:K195)-SUM(X$23:X194),"") -> 
B196: Row 196 (173) | D196: 100 | F196: 14012.42671 | H196: 140.1242671 | K196: -140.1242671 | L196: LOSS | M196: =IF(COUNTA($F$6:$F$10)=5,(F197-F24)/F24,"") -> 0.3872302439 | N196: 5 | O196: middle | W196: =IF(AND(L196="WIN",L197<>"WIN"),SUMIF(L$24:L196,"WIN",K$24:K196)-SUM(W$23:W195),"") ->  | X196: =IF(AND(L196="LOSS",L197<>"LOSS"),SUMIF(L$24:L196,"LOSS",K$24:K196)-SUM(X$23:X195),"") -> 
B197: Row 197 (174) | D197: 84 | F197: 13872.30244 | H197: 138.7230244 | K197: -138.7230244 | L197: LOSS | M197: =IF(COUNTA($F$6:$F$10)=5,(F198-F24)/F24,"") -> 0.3733579414 | N197: 6 | O197: middle | W197: =IF(AND(L197="WIN",L198<>"WIN"),SUMIF(L$24:L197,"WIN",K$24:K197)-SUM(W$23:W196),"") ->  | X197: =IF(AND(L197="LOSS",L198<>"LOSS"),SUMIF(L$24:L197,"LOSS",K$24:K197)-SUM(X$23:X196),"") -> 
B198: Row 198 (175) | D198: 82 | F198: 13733.57941 | H198: 137.3357941 | K198: -137.3357941 | L198: LOSS | M198: =IF(COUNTA($F$6:$F$10)=5,(F199-F24)/F24,"") -> 0.359624362 | N198: 7 | O198: last | W198: =IF(AND(L198="WIN",L199<>"WIN"),SUMIF(L$24:L198,"WIN",K$24:K198)-SUM(W$23:W197),"") ->  | X198: =IF(AND(L198="LOSS",L199<>"LOSS"),SUMIF(L$24:L198,"LOSS",K$24:K198)-SUM(X$23:X197),"") -> -990.9778131
B199: Row 199 (176) | D199: 44 | F199: 13596.24362 | H199: 135.9624362 | K199: 163.1549234 | L199: WIN | M199: =IF(COUNTA($F$6:$F$10)=5,(F200-F24)/F24,"") -> 0.3759398544 | N199: 1 | O199: last | W199: =IF(AND(L199="WIN",L200<>"WIN"),SUMIF(L$24:L199,"WIN",K$24:K199)-SUM(W$23:W198),"") -> 163.1549234 | X199: =IF(AND(L199="LOSS",L200<>"LOSS"),SUMIF(L$24:L199,"LOSS",K$24:K199)-SUM(X$23:X198),"") -> 
B200: Row 200 (177) | D200: 99 | F200: 13759.39854 | H200: 137.5939854 | K200: -137.5939854 | L200: LOSS | M200: =IF(COUNTA($F$6:$F$10)=5,(F201-F24)/F24,"") -> 0.3621804558 | N200: 1 | O200: new | W200: =IF(AND(L200="WIN",L201<>"WIN"),SUMIF(L$24:L200,"WIN",K$24:K200)-SUM(W$23:W199),"") ->  | X200: =IF(AND(L200="LOSS",L201<>"LOSS"),SUMIF(L$24:L200,"LOSS",K$24:K200)-SUM(X$23:X199),"") -> 
B201: Row 201 (178) | D201: 80 | F201: 13621.80456 | H201: 136.2180456 | K201: -136.2180456 | L201: LOSS | M201: =IF(COUNTA($F$6:$F$10)=5,(F202-F24)/F24,"") -> 0.3485586513 | N201: 2 | O201: middle | W201: =IF(AND(L201="WIN",L202<>"WIN"),SUMIF(L$24:L201,"WIN",K$24:K201)-SUM(W$23:W200),"") ->  | X201: =IF(AND(L201="LOSS",L202<>"LOSS"),SUMIF(L$24:L201,"LOSS",K$24:K201)-SUM(X$23:X200),"") -> 
B202: Row 202 (179) | D202: 92 | F202: 13485.58651 | H202: 134.8558651 | K202: -134.8558651 | L202: LOSS | M202: =IF(COUNTA($F$6:$F$10)=5,(F203-F24)/F24,"") -> 0.3350730648 | N202: 3 | O202: last | W202: =IF(AND(L202="WIN",L203<>"WIN"),SUMIF(L$24:L202,"WIN",K$24:K202)-SUM(W$23:W201),"") ->  | X202: =IF(AND(L202="LOSS",L203<>"LOSS"),SUMIF(L$24:L202,"LOSS",K$24:K202)-SUM(X$23:X201),"") -> -408.6678961
B203: Row 203 (180) | D203: 18 | F203: 13350.73065 | H203: 133.5073065 | K203: 160.2087678 | L203: WIN | M203: =IF(COUNTA($F$6:$F$10)=5,(F204-F24)/F24,"") -> 0.3510939415 | N203: 1 | O203: new | W203: =IF(AND(L203="WIN",L204<>"WIN"),SUMIF(L$24:L203,"WIN",K$24:K203)-SUM(W$23:W202),"") ->  | X203: =IF(AND(L203="LOSS",L204<>"LOSS"),SUMIF(L$24:L203,"LOSS",K$24:K203)-SUM(X$23:X202),"") -> 
B204: Row 204 (181) | D204: 7 | F204: 13510.93942 | H204: 135.1093942 | K204: 162.131273 | L204: WIN | M204: =IF(COUNTA($F$6:$F$10)=5,(F205-F24)/F24,"") -> 0.3673070688 | N204: 2 | O204: last | W204: =IF(AND(L204="WIN",L205<>"WIN"),SUMIF(L$24:L204,"WIN",K$24:K204)-SUM(W$23:W203),"") -> 322.3400408 | X204: =IF(AND(L204="LOSS",L205<>"LOSS"),SUMIF(L$24:L204,"LOSS",K$24:K204)-SUM(X$23:X203),"") -> 
B205: Row 205 (182) | D205: 73 | F205: 13673.07069 | H205: 136.7307069 | K205: -136.7307069 | L205: LOSS | M205: =IF(COUNTA($F$6:$F$10)=5,(F206-F24)/F24,"") -> 0.3536339981 | N205: 1 | O205: new | W205: =IF(AND(L205="WIN",L206<>"WIN"),SUMIF(L$24:L205,"WIN",K$24:K205)-SUM(W$23:W204),"") ->  | X205: =IF(AND(L205="LOSS",L206<>"LOSS"),SUMIF(L$24:L205,"LOSS",K$24:K205)-SUM(X$23:X204),"") -> 
B206: Row 206 (183) | D206: 74 | F206: 13536.33998 | H206: 135.3633998 | K206: -135.3633998 | L206: LOSS | M206: =IF(COUNTA($F$6:$F$10)=5,(F207-F24)/F24,"") -> 0.3400976582 | N206: 2 | O206: middle | W206: =IF(AND(L206="WIN",L207<>"WIN"),SUMIF(L$24:L206,"WIN",K$24:K206)-SUM(W$23:W205),"") ->  | X206: =IF(AND(L206="LOSS",L207<>"LOSS"),SUMIF(L$24:L206,"LOSS",K$24:K206)-SUM(X$23:X205),"") -> 
... 318 more rows

Sheet Instruction & Quotations
D2: Quotations | M2: Start Up Page | S2: Instructions - How To | Y2: DayTradingLife.com
D5: "In Order To Win, You Must Expect To Win." | M5: For More Quotations, Please Visit: www.DayTradingLife.com
D6: Richard Bach (1936-, American Author)
D8: Expect Victory And You Make Victory.
D9: Preston Bradley
D11: "Life... It Tends To Respond To Our Outlook, To Shape
D12: Itself To Meet Our Expectations."
D13: Richard M. DeVos
D14: (1926-, American Businessman, Co-Founder Of Amway Corp.)
D16: "Good Is Not Good, When Better Is Expected."
D17: Thomas Fuller (1608-1661, British Clergyman, Author)
D19: "Persistent Prophecy Is A Familiar Way Of Assuring The Event."
D20: George Robert Gissing (1857-1903, British Novelist, Critic, Essayist)
D22: "I Skate To Where The Puck Is Going To Be, Not Where It Is."
D23: Wayne Gretzky (1961-, Canadian Hockey Player)
D25: "Life Is Largely A Matter Of Expectation."
D26: Horace (BC 65-8, Italian Poet)
D28: "When You Expect Things To Happen -- Strangely Enough -- They Do Happen."
D29: John Pierpont Morgan (1837-1913, American Banker, Financier, Art Collector)
D31: "What Is Destructive Is Impatience, Haste, Expecting Too Much Too Fast."
D32: May Sarton (1912-1995, American Poet, Novelist)
D34: "Winner Expects To Win In Advance. Life Is A Self-Fulfilling Prophesy."
D35: Author Unknown
D37: "Whatever We Expect With Confidence Becomes Our Own Self-Fulfilling Prophecy."
D38: Brian Tracy (1944-, Canadian-born American Trainer, Speaker, Author, Businessman)
D39: Author's Website: www.briantracy.com
D41: "Expect The Best, Plan For The Worst, And Prepare To Be Surprised."
D42: Denis Waitley (1933-, American Author, Speaker, Trainer, Peak Performance Expert) | M42: Click Start To Start :-)
D43: Author's Website: www.deniswaitley.com
D46: "I Know Not Anything More Pleasant, Or More Instructive, Than To Compare | T46: Van Tharp's Expectancy
D47: Experience With Expectation, Or To Register From Time To Time The | T47: Long Version: Expectancy? It Is Your Average Win Rate * Average Amount Won – Average Loss Rate * Average Amount Lost = Expectancy, Or; Your Average Expected Profit (Or Loss) Per Trade Taken.
D48: Difference Between Idea And Reality. It Is By This Kind Of Observation
D49: That We Grow Daily Less Liable To Be Disappointed."
D50: Samuel Johnson (1709-1784, British author) | T50: Short Version: "Expectancy Is Simply The Mean Or Average R-Multiple Generated."
D52: EXPECTANCY
D53: "In The Real World Of Investing Or Trading, Expectancy Tells You The Net Profit Or Loss That You Can Expect Over A Large Number Of Single-Unit Trades. If The Total Amount Of Losing Trades Is Greater Than The Total Amount Of Winning Trades, Then You Are A Net Loser & Have A Negative Expectancy. If The Total Amount Of Winning Trades Is Greater Than The Total Amount Of Losing Trades, Then You Are A Net Winner & Have A Positive Expectancy." | T53: Distribution and Reprint Policy
T54: This document maybe be republished & distributed under the proviso that it cannot be altered or amended In Anyway.
T56: DayTradingLife.com Reserve all rights to this effect.
T57: For any futher information please email me at: | Y57: traderdowboy@gmail.com
D58: Dr. Van Tharp (Page 135 - Trade Your Way To Financial Freedom). | T58: Copyright © 2011-2012 - DayTradingLife.com. - All rights reserved.
D59: "A Must Read, A Timeless Classic, By The 'Position Sizing' Master." - Dow-Boy

Sheet Credits
